{"text_format":"1","workbook":"xlsx","n_sheets":30,"sheets":["Basic","Cover","Names of Bidder","Attach 3(JV)","Attach-3 (QR)","Attach 4","Attach 4 (A)","Attach 4 (B)","Attach 5","Attach 5A","Attach 5B","Attach 6","Attach 7","Attach 9","Attach 10","Attach 11","Attach 12","Attach 13","Attach 14","Attach 14-IP","Attach 15","Attach 16","Attach 17","Attach 18","Attach 19","Attach-20","Attach 23","Bid Form 1st Envelope ","N to W","Sheet1"],"not_rendered":{"charts":0,"images":2,"macros":1,"external_links":7,"defined_names":2157,"comments":0,"pivot_tables":0},"unopened":[],"bounds":{"document_bytes":16777216,"sheet_cells":100000,"rows_first":2000,"rows_last":500,"rows_between":2000,"halvings":0,"cell_chars":16384,"cell_head_chars":4096},"cells_cut":0,"cells_raw":0,"read":"whole","date_system":"1900"}

{"sheet":"Basic","index":0,"n_rows":5,"n_cols":2,"rows_kept":5,"cut":false,"hidden":true,"merged":[[0,1,0,7],[3,1,3,2],[2,1,2,7]]}
["Name of Package :","400kV GIS Substation Extension Package SS-112 for  (i) Extension of 765/400kV Navsari (New) GIS Substation under ICT Augmentation at Navsari (New) associated with integration of additional 7 GW RE power from Khavda RE park under Phase-III, (ii) Extension of 400/220kV Mysore Substation under Augmentation of transformation capacity by 1x500 MVA, 400/220kV ICT (4th) at Mysore S/S, (iii) Extension of 400kV Indore Substation under Scheme to control fault level at 400kV Indore Substation and (iv) Extension of 400kV Jeypore (POWERGRID) Substation under Transmission scheme for Inter-regional ER-WR interconnection scheme."]
["Package No          :","SS112"]
["Specification No. :","CC/NT/W-GIS/DOM/A06/23/03905"]
[]
["Completion Period"]

{"sheet":"Cover","index":1,"n_rows":13,"n_cols":12,"rows_kept":13,"cut":false,"hidden":false,"merged":[[0,5,19,5],[14,1,14,4],[6,2,6,4],[8,2,8,4],[9,2,9,4],[5,2,5,4],[0,1,0,4],[1,1,1,4],[2,1,2,4],[3,2,3,4],[11,2,11,4],[4,2,4,4],[7,2,7,4],[10,2,10,4],[12,2,12,4],[16,1,19,4],[0,0,19,0]]}
[": Attachments:","General guidelines for filling up  the Attachments",null,null,null,null,null,null,null,null,null,"  "]
[null,{"$f":"Basic!B1","v":"400kV GIS Substation Extension Package SS-112 for  (i) Extension of 765/400kV Navsari (New) GIS Substation under ICT Augmentation at Navsari (New) associated with integration of additional 7 GW RE power from Khavda RE park under Phase-III, (ii) Extension of 400/220kV Mysore Substation under Augmentation of transformation capacity by 1x500 MVA, 400/220kV ICT (4th) at Mysore S/S, (iii) Extension of 400kV Indore Substation under Scheme to control fault level at 400kV Indore Substation and (iv) Extension of 400kV Jeypore (POWERGRID) Substation under Transmission scheme for Inter-regional ER-WR interconnection scheme."}]
[null,{"$f":"\"Specification No.: \" & Basic!B3","v":"Specification No.: CC/NT/W-GIS/DOM/A06/23/03905"}]
[null,1,"Fill up only green shaded cells in the relevent attachments."]
[null,2,"Attachments 3(JV),  4,  4(A),  4(B),  5, 5(A), 5(B), 6, 7,  9,  10, 11, 12, 13,14, 14-IP, 15, 16, 17, 19 and Bid Form for 1st Envelope are included here."]
[null,3,"Attachment 1 Bid Security : Not Applicable."]
[null,3,"Attachment 2 Power of Attorney : No specific format is provided by POWERGRID. Bidder may use their own format."]
[null,4,"Attachment-3 (QR Schedule) : Format attached in Volume-III of Bidding Documents."]
[null,5,"Attachment 8 Manufacturer’s Authorisation Form : To be furnished as per proforma provided in the bidding document, on the letter head of the each Manufactures proposed to supply main items. Not included here."]
[null,6,"Attachment 14 Integrity Pact : To be submitted as per ITB Clause No. 9.3(o) and as per remarks in the Attach 14-IP."]
[null,7,"Attachment 20, 21, 22, 23, 24, 25, 26, 27, 28, 29 :  To be submitted as per the provisions of the Bidding Documents (Formats Attached seperately in Volume-III if Bidding Documents."]
[null,8,"Attachment 24: Confirmation in regard to Design and Type Test (to be furnished in case bidder is proposing to qualify through Note-4 under Route-1 of QR)"]
[null,"Note :","Enable the Active X Control & Macros. Also ensure to keep option of \"Trust acess to VBA project object Model\" cheched [√]. Ensure that you work on MS Excel 2007 or higher version."]

{"sheet":"Names of Bidder","index":2,"n_rows":37,"n_cols":28,"rows_kept":37,"cut":false,"hidden":false,"merged":[[36,1,38,3],[0,1,0,3],[1,1,1,3],[28,1,29,2],[27,1,27,2],[3,1,3,2],[4,1,4,2],[10,1,10,2]]}
[null,{"$f":"Basic!B1","v":"400kV GIS Substation Extension Package SS-112 for  (i) Extension of 765/400kV Navsari (New) GIS Substation under ICT Augmentation at Navsari (New) associated with integration of additional 7 GW RE power from Khavda RE park under Phase-III, (ii) Extension of 400/220kV Mysore Substation under Augmentation of transformation capacity by 1x500 MVA, 400/220kV ICT (4th) at Mysore S/S, (iii) Extension of 400kV Indore Substation under Scheme to control fault level at 400kV Indore Substation and (iv) Extension of 400kV Jeypore (POWERGRID) Substation under Transmission scheme for Inter-regional ER-WR interconnection scheme."}]
[null,{"$f":"Basic!A3&Basic!B3","v":"Specification No. :CC/NT/W-GIS/DOM/A06/23/03905"},null,null,null,null,null,null,null,null,null,null,null,null,null,null,null,null,null,null,null,null,null,null,null,null,"Sole Bidder",1]
[null,null,null,null,null,null,null,null,null,null,null,null,null,null,null,null,null,null,null,null,null,null,null,null,null,null,"JV (Joint Venture)","2 or More"]
[null,"Whether Bidder is MSE\n[Select from drop down menu]\n",null,null,null,null,null,null,{"$f":"IF(D4=\"Yes\",1,0)","v":0}]
[null,{"$f":"IF(I4=1,\"Name of the Designated Authority of GoI under Public  Procurement Policy for MSE Order 2012\",\"\" )","v":""},null,null,null,null,null,null,{"$f":"IF(D11=\"Yes\",1,0)","v":1}]
[]
[]
[]
[null,"Specify type of Bidder\n[Select from drop down menu]",null,"SOLE BIDDER",null,"SOLE BIDDER",{"$f":"IF(D9=\"SOLE BIDDER\", 1,2)","v":1},{"$f":"IF(D9=\"SOLE BIDDER\",1,2)","v":1},null,null,null,null,null,null,null,null,null,null,null,null,null,null,null,null,null,null,{"$f":"IF(D9= \"Sole Bidder\", 0, D10)","v":0}]
[null,{"$f":"IF(D9= \"JOINT VENTURE (JV)\", \"Total Nos. of  Partners in the JV [excluding the Lead Partner]\", \"\")","v":""},null,1,null,"JOINT VENTURE (JV)"]
[null,{"$f":"IF(D9= \"JV (Joint Venture)\", \"Whether other partner of the JV is MSE or not   \n[Select from drop down menu]\", \"\")","v":""},null,"Yes"]
[]
[null,{"$f":"IF(D9= \"Sole Bidder\", \"Name of Sole Bidder\", \"Name of Lead Partner\")","v":"Name of Sole Bidder"}]
[null,{"$f":"IF(D9= \"Sole Bidder\", \"Address of Sole Bidder\", \"Address of Lead Partner\")","v":"Address of Sole Bidder"}]
[]
[]
[]
[null,{"$f":"IF(D10=1,\"Other Partner\",IF(D10=\"2 or More\",\"Other Partner-1\",\"\"))","v":"Other Partner"}]
[null,{"$f":"IF(D10=1,\"Address of other Partner\",IF(D10=\"2 or More\",\"Address of other Partner - 1\",\"\"))","v":"Address of other Partner"}]
[]
[]
[]
[null,"Name of other Partner - 2 (More, if any)"]
[null,"Address of other Partner - 2 (More, if any)",null,"…… ……. …….. …… ……. …….. "]
[null,null,null,"…… ……. …….. …… ……. …….. "]
[null,null,null,"…… ……. …….. …… ……. …….. "]
[]
[null,"Any Tower Parts Manufacturer proposed other than the bidder [Yes / No]",null,"No",{"$f":"IF(OR(D28=\"Yes\",D28=\"No\",D28=\"\")=TRUE, \"\", \"In Correct Entry\")","v":""}]
[null,"Proposed Tower Parts Manufacturer other than the bidder, if any [Maximum two nos.]"]
[]
[]
[null,"Printed Name "]
[null,"Designation"]
[]
[null,"Date      :"]
[null,"Place      :"]
[null,"NOTE: (In case of JV, all partners of the Joint Venture shall be MSEs to consdier its bid as bid from MSE, JV bidder with at least one non-MSE partner (whether lead or other partner)  shall not be eligible for the benefit available to the MSE bidders)"]

{"sheet":"Attach 3(JV)","index":3,"n_rows":25,"n_cols":46,"rows_kept":25,"cut":false,"hidden":false,"merged":[[7,0,7,3],[2,0,2,4],[4,0,4,4],[21,0,21,4],[8,1,8,3],[9,1,9,3],[10,1,10,3],[11,1,11,3],[19,1,19,3],[13,0,13,4],[16,1,16,3],[17,1,17,3],[18,1,18,3],[15,1,15,3]]}
[{"$f":"Basic!A3&Basic!B3","v":"Specification No. :CC/NT/W-GIS/DOM/A06/23/03905"},null,null,null,{"$f":"\"Attachment-3(JV) \"","v":"Attachment-3(JV) "},null,null,null,null,null,null,null,null,null,null,null,null,null,null,null,null,null,null,null,null,{"$f":"'Names of Bidder'!D9","v":"SOLE BIDDER"},null,null,null,null,null,null,null,null,null,null,null,null,null,null,null,null,null,null,null,{"$f":"Basic!B2","v":"SS112"}]
[null,null,null,null,null,null,null,null,null,null,null,null,null,null,null,null,null,null,null,null,null,null,null,null,null,{"$f":"'Names of Bidder'!AA9","v":0}]
[{"$f":"Basic!B1","v":"400kV GIS Substation Extension Package SS-112 for  (i) Extension of 765/400kV Navsari (New) GIS Substation under ICT Augmentation at Navsari (New) associated with integration of additional 7 GW RE power from Khavda RE park under Phase-III, (ii) Extension of 400/220kV Mysore Substation under Augmentation of transformation capacity by 1x500 MVA, 400/220kV ICT (4th) at Mysore S/S, (iii) Extension of 400kV Indore Substation under Scheme to control fault level at 400kV Indore Substation and (iv) Extension of 400kV Jeypore (POWERGRID) Substation under Transmission scheme for Inter-regional ER-WR interconnection scheme."}]
[]
["(Joint Venture Agreement and Power of Attorney for Joint Venture*)"]
[]
["Bidder’s Name and Address :",null,null,null,"To:"]
[{"$f":"IF(F8=1,B9,\"JOINT VENTURE (JV) OF \"&B9&\" & \"&B17)","v":""},null,null,null,"Contract Services",{"$f":"'Names of Bidder'!G9","v":1},null,null,null,null,null,null,null,null,null,null,null,null,null,null,null,null,null,null,null,{"$f":"IF('Names of Bidder'!D10=1,'Names of Bidder'!D13&\" & \"&'Names of Bidder'!D18,IF('Names of Bidder'!D10=\"2 or More\",'Names of Bidder'!D13&\" , \"&'Names of Bidder'!D18&\" & \"&'Names of Bidder'!D23,\"\"))","v":" & "}]
["Name        :",{"$f":"IF('Names of Bidder'!D13=0, \"\", 'Names of Bidder'!D13)","v":""},null,null,"Power Grid Corporation of India Ltd.,"]
["Address    :",{"$f":"IF('Names of Bidder'!D14=0, \"\", 'Names of Bidder'!D14)","v":""},null,null,"\"Saudamini\", Plot No. 2, Sector 29"]
[null,{"$f":"IF('Names of Bidder'!D15=0, \"\", 'Names of Bidder'!D15)","v":""},null,null,"Gurgaon (Haryana) - 122001"]
[null,{"$f":"IF('Names of Bidder'!D16=0, \"\", 'Names of Bidder'!D16)","v":""}]
[]
[{"$f":"IF('Names of Bidder'!D9=\"Sole Bidder\", \"This Attachment is Not Applicable\", \"\")","v":"This Attachment is Not Applicable"}]
["Name(s) and Addresse(s) of other partner(s)"]
[null,{"$f":"IF(Z2=1,\"Other Partner\",IF(Z2=\"2 or More\",\"Other Partner-1\",\"\"))","v":""},null,null,{"$f":"IF(Z2=\"2 or More\", \"Other Partner-2\", \"\")","v":""}]
["Name        :",{"$f":"IF('Names of Bidder'!D18=0, \"\", 'Names of Bidder'!D18)","v":""},null,null,{"$f":"IF($Z$2=\"2 or More\", IF('Names of Bidder'!D23=0, \"\", 'Names of Bidder'!D23), \"\")","v":""}]
["Address    :",{"$f":"IF('Names of Bidder'!D19=0, \"\", 'Names of Bidder'!D19)","v":""},null,null,{"$f":"IF($Z$2=\"2 or More\", IF('Names of Bidder'!D24=0, \"\", 'Names of Bidder'!D24), \"\")","v":""}]
[null,{"$f":"IF('Names of Bidder'!D20=0, \"\", 'Names of Bidder'!D20)","v":""},null,null,{"$f":"IF($Z$2=\"2 or More\", IF('Names of Bidder'!D25=0, \"\", 'Names of Bidder'!D25), \"\")","v":""}]
[null,{"$f":"IF('Names of Bidder'!D21=0, \"\", 'Names of Bidder'!D21)","v":""},null,null,{"$f":"IF($Z$2=\"2 or More\", IF('Names of Bidder'!D26=0, \"\", 'Names of Bidder'!D26), \"\")","v":""}]
["Dear Sir,"]
["The Joint Venture Agreement (as per the proforma attached at no. 15 in Section-VI, Sample Forms and Procedures, Conditions of Contract, Vol.-I of the Bidding Documents) and Power of Attorney for Joint Venture (as per the proforma attached at no. 14 in Section-VI, Sample Forms and Procedures, Conditions of Contract, Vol.-I of the Bidding Documents) are enclosed herewith."]
[]
["Date      :",{"$f":"IF('Names of Bidder'!D35=0, \"\", 'Names of Bidder'!D35)","v":""},null,"Printed Name :",{"$f":"IF('Names of Bidder'!D32=0, \"\", 'Names of Bidder'!D32)","v":""},null,null,null,null,null,null,null,null,null,null,null,null,null,null,null,null,null,null,null,null,null,{"$f":"Basic!B4","v":0}]
["Place      :",{"$f":"IF('Names of Bidder'!D36=0, \"\", 'Names of Bidder'!D36)","v":""},null,"Designation :",{"$f":"IF('Names of Bidder'!D33=0, \"\", 'Names of Bidder'!D33)","v":""},null,null,null,null,null,null,null,null,null,null,null,null,null,null,null,null,null,null,null,null,null,{"$f":"Basic!B5","v":0}]

{"sheet":"Attach-3 (QR)","index":4,"n_rows":340,"n_cols":12,"rows_kept":340,"cut":false,"hidden":false,"merged":[[2,0,2,8],[4,0,4,8],[7,0,7,4],[8,1,8,3],[9,1,9,3],[10,1,10,3],[239,3,239,4],[239,1,239,2],[144,1,144,8],[146,1,146,8],[147,1,147,8],[157,1,157,8],[158,1,158,8],[169,1,169,8],[170,1,170,4],[170,5,170,8],[22,1,22,8],[23,1,23,8],[24,1,24,8],[26,1,26,8],[27,1,27,8],[28,1,28,8],[14,0,14,8],[16,0,16,8],[17,1,17,8],[18,0,18,8],[20,0,20,8],[21,1,21,8],[31,1,31,8],[32,1,32,8],[33,1,33,8],[37,1,37,2],[37,3,37,4],[37,5,37,6],[37,7,37,8],[35,0,36,0],[35,1,36,2],[35,3,36,4],[35,5,36,6],[35,7,36,8],[38,0,40,0],[38,1,40,2],[38,3,38,4],[38,5,38,6],[38,7,38,8],[39,3,39,4],[39,5,39,6],[39,7,39,8],[40,3,40,4],[40,5,40,6],[40,7,40,8],[45,1,45,2],[45,3,45,4],[45,5,45,6],[45,7,45,8],[42,1,42,2],[42,3,42,4],[42,5,42,6],[42,7,42,8],[43,1,43,2],[43,3,43,4],[41,1,41,2],[41,3,41,4],[41,5,41,6],[41,7,41,8],[44,1,44,2],[44,3,44,4],[44,5,44,6],[44,7,44,8],[43,5,43,6],[43,7,43,8],[48,3,48,4],[48,5,48,6],[48,7,48,8],[49,3,49,4],[49,5,49,6],[49,7,49,8],[61,5,61,6],[61,7,61,8],[46,1,46,2],[46,3,46,4],[46,5,46,6],[46,7,46,8],[47,3,47,4],[47,5,47,6],[47,7,47,8],[62,1,62,4],[62,5,62,6],[69,7,69,8],[52,1,52,8],[54,1,54,8],[55,1,55,8],[58,0,58,8],[59,1,59,8],[60,1,60,8],[61,1,61,4],[67,0,70,0],[67,1,70,4],[67,5,67,6],[67,7,67,8],[68,5,68,6],[63,1,63,4],[63,5,63,6],[63,7,63,8],[68,7,68,8],[70,5,70,6],[70,7,70,8],[109,1,109,2],[119,6,119,8],[115,1,116,5],[110,1,110,5],[108,1,108,8],[113,1,114,5],[105,1,105,6],[100,1,100,8],[88,7,88,8],[88,5,88,6],[98,1,98,8],[99,1,99,8],[101,1,101,8],[106,1,106,6],[106,7,106,8],[92,1,92,8],[94,1,94,8],[96,1,96,8],[88,1,88,4],[134,1,134,5],[143,1,143,8],[134,6,134,8],[160,1,160,8],[162,1,162,8],[136,1,136,4],[136,5,136,6],[136,7,136,8],[135,1,135,8],[153,1,153,8],[137,7,137,8],[138,1,138,4],[138,5,138,6],[138,7,138,8],[137,1,137,4],[137,5,137,6],[142,1,142,4],[142,5,142,6],[142,7,142,8],[140,1,140,4],[140,5,140,6],[139,5,139,6],[139,7,139,8],[139,1,139,4],[171,1,171,8],[172,3,172,4],[172,5,173,8],[173,3,173,4],[174,1,174,2],[179,7,179,8],[177,5,177,6],[141,5,141,6],[155,1,155,8],[174,3,174,4],[174,5,174,6],[174,7,174,8],[164,1,164,8],[166,1,166,8],[168,1,168,8],[149,1,149,6],[150,1,150,6],[175,1,175,4],[176,3,176,4],[176,7,176,8],[177,3,177,4],[177,7,177,8],[176,5,176,6],[178,1,178,2],[178,3,178,4],[178,7,178,8],[179,1,179,2],[179,3,179,4],[180,3,180,4],[190,3,190,4],[190,7,190,8],[191,1,191,2],[191,3,191,4],[191,7,191,8],[187,1,187,2],[187,3,187,4],[187,5,187,6],[189,3,189,4],[189,7,189,8],[182,1,182,8],[184,1,184,8],[185,3,185,4],[185,5,186,8],[186,3,186,4],[187,7,187,8],[188,1,188,4],[180,7,180,8],[181,3,181,4],[181,7,181,8],[195,1,195,2],[195,3,195,4],[195,7,195,8],[196,1,196,8],[198,1,198,2],[198,3,198,4],[198,5,198,6],[198,7,198,8],[192,3,192,4],[192,7,192,8],[193,3,193,4],[193,7,193,8],[194,3,194,4],[194,7,194,8],[201,1,201,2],[201,3,201,4],[201,5,201,6],[201,7,201,8],[202,1,202,4],[202,5,202,8],[199,1,199,2],[199,3,199,4],[199,5,199,6],[199,7,199,8],[200,1,200,4],[200,5,200,8],[208,3,208,4],[208,5,208,6],[208,7,208,8],[209,1,209,4],[210,3,210,4],[210,7,210,8],[210,5,210,6],[204,1,204,4],[204,5,204,8],[205,1,205,8],[206,3,206,4],[206,5,207,8],[207,3,207,4],[213,7,213,8],[214,3,214,4],[214,7,214,8],[215,3,215,4],[215,7,215,8],[211,3,211,4],[211,7,211,8],[212,3,212,4],[212,7,212,8],[213,3,213,4],[226,7,226,8],[216,1,216,8],[221,1,221,8],[222,3,222,4],[222,5,223,8],[223,3,223,4],[224,3,224,4],[224,5,224,6],[224,7,224,8],[224,1,224,2],[225,1,225,4],[226,3,226,4],[229,7,229,8],[230,3,230,4],[230,7,230,8],[231,3,231,4],[231,7,231,8],[227,3,227,4],[227,7,227,8],[228,3,228,4],[228,7,228,8],[229,3,229,4],[234,5,234,6],[234,7,234,8],[235,1,235,2],[235,3,235,4],[235,5,235,6],[235,7,235,8],[234,1,234,4],[232,1,232,2],[232,3,232,4],[232,5,232,6],[232,7,232,8],[233,1,233,2],[233,3,233,4],[233,5,233,6],[233,7,233,8],[236,5,236,6],[236,7,236,8],[237,1,237,8],[236,1,236,4],[240,1,240,2],[240,3,240,4],[240,5,240,6],[240,7,240,8],[239,7,239,8],[239,5,239,6],[243,1,243,2],[243,3,243,4],[243,5,243,6],[243,7,243,8],[245,1,245,4],[245,5,245,8],[241,1,241,2],[241,3,241,4],[241,5,241,6],[241,7,241,8],[242,1,242,2],[242,3,242,4],[242,5,242,6],[242,7,242,8],[246,1,246,8],[247,3,247,4],[247,5,248,5],[247,6,248,6],[247,7,248,8],[249,1,249,2],[249,3,249,4],[249,5,249,6],[249,7,249,8],[256,3,256,4],[256,7,256,8],[253,1,253,2],[253,3,253,4],[253,7,253,8],[254,1,254,2],[254,3,254,4],[254,7,254,8],[250,1,250,4],[251,1,251,2],[251,3,251,4],[251,7,251,8],[252,1,252,2],[252,3,252,4],[252,7,252,8],[255,1,255,2],[339,2,339,3],[339,6,339,8],[80,1,80,4],[105,7,105,8],[104,7,104,8],[332,5,332,6],[328,5,328,6],[328,7,328,8],[333,7,333,8],[333,1,333,4],[332,1,332,4],[331,7,331,8],[331,1,331,4],[331,5,331,6],[332,7,332,8],[306,2,306,8],[307,2,307,8],[308,2,308,8],[315,1,315,8],[296,2,296,8],[297,2,297,8],[298,2,298,8],[268,3,268,4],[268,7,268,8],[338,2,338,3],[338,6,338,8],[265,1,265,2],[265,3,265,4],[265,7,265,8],[266,1,266,2],[266,3,266,4],[266,7,266,8],[262,1,262,2],[262,3,262,4],[262,5,262,6],[262,7,262,8],[263,1,263,4],[264,1,264,2],[264,3,264,4],[264,7,264,8],[333,5,333,6],[330,1,330,4],[330,5,330,6],[327,1,327,2],[327,3,327,4],[327,5,327,6],[327,7,327,8],[318,1,318,8],[87,7,87,8],[87,5,87,6],[83,7,83,8],[83,5,83,6],[84,5,84,6],[86,5,86,6],[86,7,86,8],[11,1,11,3],[29,1,29,8],[50,1,50,8],[56,1,56,8],[79,7,79,8],[77,5,77,6],[77,7,77,8],[71,5,71,6],[73,7,73,8],[79,5,79,6],[64,1,64,8],[65,1,65,4],[65,5,65,6],[65,7,65,8],[66,1,66,8],[69,5,69,6],[62,7,62,8],[71,0,73,0],[80,7,80,8],[80,5,80,6],[74,0,74,8],[78,5,78,6],[91,1,91,8],[71,7,71,8],[72,5,72,6],[72,7,72,8],[73,5,73,6],[75,1,76,4],[85,1,85,4],[85,5,85,8],[86,1,86,4],[82,5,82,6],[81,7,81,8],[87,1,87,4],[81,1,81,4],[82,1,82,4],[83,1,83,4],[84,1,84,4],[82,7,82,8],[81,5,81,6],[84,7,84,8],[123,1,124,5],[118,1,118,5],[133,6,133,8],[118,6,118,8],[119,1,119,5],[120,1,120,5],[107,1,107,6],[107,7,107,8],[103,1,103,8],[104,1,104,6],[111,1,111,5],[126,0,126,8],[132,1,132,8],[133,1,133,5],[121,0,122,0],[121,1,122,5],[127,1,127,8],[128,1,128,8],[130,1,130,8],[110,6,110,8],[111,6,111,8],[113,0,114,0],[112,1,112,5],[117,1,117,8],[140,7,140,8],[141,1,141,4],[141,7,141,8],[330,7,330,8],[208,1,208,2],[228,1,228,2],[334,0,334,8],[192,1,192,2],[213,1,213,2],[229,1,229,2],[329,5,329,6],[301,2,301,8],[290,1,290,8],[291,1,291,6],[292,2,292,8],[293,2,293,8],[294,2,294,8],[295,2,295,8],[278,1,278,8],[280,1,280,8],[281,1,281,8],[283,1,283,8],[257,1,257,8],[255,3,255,4],[329,7,329,8],[329,1,329,4],[328,1,328,4],[309,2,309,8],[310,2,310,8],[274,1,274,2],[274,3,274,4],[326,1,326,8],[319,1,319,8],[324,1,324,8],[311,2,311,8],[312,2,312,8],[313,2,313,8],[275,1,275,2],[275,3,275,4],[275,5,275,6],[275,7,275,8],[276,1,276,2],[276,3,276,4],[276,5,276,6],[276,7,276,8],[299,2,299,8],[300,2,300,8],[212,1,212,2],[320,2,320,8],[322,2,322,8],[303,1,303,6],[304,2,304,8],[305,2,305,8],[274,5,274,6],[274,7,274,8],[269,1,269,2],[269,3,269,4],[269,7,269,8],[270,1,270,8],[272,1,272,2],[272,3,272,4],[272,5,272,6],[272,7,272,8],[267,1,267,2],[267,3,267,4],[286,1,286,8],[288,1,288,8],[284,1,284,8],[255,7,255,8],[256,1,256,2],[267,7,267,8],[268,1,268,2],[273,1,273,2],[273,3,273,4],[273,5,273,6],[273,7,273,8],[259,1,259,8],[260,3,260,4],[260,5,261,5],[260,6,261,6],[260,7,261,8]]}
[{"$f":"Basic!A3&Basic!B3","v":"Specification No. :CC/NT/W-GIS/DOM/A06/23/03905"},null,null,null,null,null,null,null,"ATTACHMENT-3 (QR)"]
[]
[{"$f":"Basic!B1","v":"400kV GIS Substation Extension Package SS-112 for  (i) Extension of 765/400kV Navsari (New) GIS Substation under ICT Augmentation at Navsari (New) associated with integration of additional 7 GW RE power from Khavda RE park under Phase-III, (ii) Extension of 400/220kV Mysore Substation under Augmentation of transformation capacity by 1x500 MVA, 400/220kV ICT (4th) at Mysore S/S, (iii) Extension of 400kV Indore Substation under Scheme to control fault level at 400kV Indore Substation and (iv) Extension of 400kV Jeypore (POWERGRID) Substation under Transmission scheme for Inter-regional ER-WR interconnection scheme."}]
[]
["(Qualifying Requirement Data)"]
[]
["Bidder’s Name and Address :",null,null,null,null,"To:"]
[{"$f":"'Attach 3(JV)'!A8","v":""},null,null,null,null,"Contract Services"]
["Name:",{"$f":"'Attach 3(JV)'!B9","v":""},null,null,null,"Power Grid Corporation of India Ltd.,"]
["Address:",{"$f":"'Attach 3(JV)'!B10","v":""},null,null,null,"\"Saudamini\", Plot No. 2, Sector 29"]
[null,{"$f":"'Attach 3(JV)'!B11","v":""},null,null,null,"Gurgaon (Haryana) - 122001"]
[null,{"$f":"'Attach 3(JV)'!B12","v":""}]
["Dear Sir,"]
[]
["Attachment-3 (QR) is attached with this Volume."]
[]
[null,null,null,null,null,null,null,null,null,{"$f":"+'Names of Bidder'!G9","v":1}]
[]
[]
[]
[]
[]
[]
[]
[]
[]
[]
[]
[]
[]
[]
[]
[]
[]
[]
[null,null,null,null,null,null,null,null,null,null,{"$f":"J17","v":1},{"$f":"+'Names of Bidder'!D10","v":1}]
[]
[]
[]
[]
[]
[]
[]
[]
[]
[]
[]
[]
[]
[]
[]
[]
[]
[]
[]
[]
[]
[]
[]
[]
[]
[null,null,null,null,null,null,null,null,null,{"$f":"K36","v":1},{"$f":"'Attach 3(JV)'!B9","v":""}]
[null,null,null,null,null,null,null,null,null,null,{"$f":"'Attach 3(JV)'!B17","v":""}]
[]
[]
[]
[]
[]
[]
[]
[]
[]
[]
[]
[]
[]
[]
[]
[]
[]
[]
[]
[]
[]
[]
[]
[]
[]
[]
[]
[]
[]
[]
[]
[]
[]
[]
[]
[]
[]
[]
[]
[]
[]
[]
[]
[]
[]
[]
[]
[]
[]
[]
[]
[]
[]
[]
[]
[]
[]
[]
[]
[]
[]
[]
[]
[]
[]
[]
[]
[]
[]
[]
[]
[]
[]
[]
[]
[]
[]
[]
[]
[]
[]
[]
[]
[]
[]
[]
[]
[]
[]
[]
[]
[]
[]
[]
[]
[]
[]
[]
[]
[]
[]
[]
[]
[]
[]
[]
[]
[null,null,null,null,null,null,null,null,null,{"$f":"J17","v":1}]
[]
[]
[]
[]
[]
[]
[]
[]
[]
[]
[]
[]
[]
[]
[]
[]
[]
[]
[]
[]
[]
[]
[]
[]
[]
[]
[]
[]
[]
[]
[]
[]
[]
[]
[]
[]
[]
[]
[]
[]
[]
[]
[]
[]
[]
[]
[]
[]
[]
[]
[]
[]
[]
[]
[]
[]
[]
[]
[]
[]
[]
[]
[]
[]
[]
[]
[]
[]
[]
[]
[]
[]
[]
[]
[]
[]
[]
[]
[]
[]
[]
[]
[]
[]
[]
[]
[]
[]
[]
[]
[]
[]
[]
[]
[]
[]
[]
[]
[]
[]
[]
[]
[]
[]
[]
[]
[]
[]
[]
[]
[]
[]
[]
[]
[]
[]
[]
[]
[]
[]
[]
[]
[]
[]
[]
[]
[]
[]
[]
[]
[]
[]
[]
[]
[]
[]
[]
[]
[]
[]
[]
[]
[]
[]
[]
[]
[]
[]
[]
[]
[]
[]
[]
[]
[]
[]
[]
[]
[]
[]
[]
[]
[]
[]
[]
[]
[]
[null,"Date      :",{"$f":"'Attach 3(JV)'!B24","v":""},null,null,"Printed Name :",{"$f":"'Attach 3(JV)'!E24","v":""}]
[null,"Place      :",{"$f":"'Attach 3(JV)'!B25","v":""},null,null,"Designation :",{"$f":"'Attach 3(JV)'!E25","v":""}]

{"sheet":"Attach 4","index":5,"n_rows":26,"n_cols":9,"rows_kept":26,"cut":false,"hidden":false,"merged":[[7,0,7,3],[17,0,17,4],[8,1,8,3],[2,0,2,4],[4,0,4,4],[16,0,16,4],[9,1,9,3],[10,1,10,3],[11,1,11,3]]}
[{"$f":"Basic!A3&Basic!B3","v":"Specification No. :CC/NT/W-GIS/DOM/A06/23/03905"},null,null,null,{"$f":"\"Attachment-4 \"","v":"Attachment-4 "}]
[]
[{"$f":"'Attach 3(JV)'!A3","v":"400kV GIS Substation Extension Package SS-112 for  (i) Extension of 765/400kV Navsari (New) GIS Substation under ICT Augmentation at Navsari (New) associated with integration of additional 7 GW RE power from Khavda RE park under Phase-III, (ii) Extension of 400/220kV Mysore Substation under Augmentation of transformation capacity by 1x500 MVA, 400/220kV ICT (4th) at Mysore S/S, (iii) Extension of 400kV Indore Substation under Scheme to control fault level at 400kV Indore Substation and (iv) Extension of 400kV Jeypore (POWERGRID) Substation under Transmission scheme for Inter-regional ER-WR interconnection scheme."}]
[]
["(Form of Certificate of Origin and Eligibility)"]
[]
[{"$f":"'Attach 3(JV)'!A7","v":"Bidder’s Name and Address :"},null,null,null,{"$f":"'Attach 3(JV)'!E7","v":"To:"}]
[{"$f":"'Attach 3(JV)'!A8","v":""},null,null,null,{"$f":"'Attach 3(JV)'!E8","v":"Contract Services"}]
["Name        :",{"$f":"'Attach 3(JV)'!B9","v":""},null,null,{"$f":"'Attach 3(JV)'!E9","v":"Power Grid Corporation of India Ltd.,"}]
["Address    :",{"$f":"'Attach 3(JV)'!B10","v":""},null,null,{"$f":"'Attach 3(JV)'!E10","v":"\"Saudamini\", Plot No. 2, Sector 29"}]
[null,{"$f":"'Attach 3(JV)'!B11","v":""},null,null,{"$f":"'Attach 3(JV)'!E11","v":"Gurgaon (Haryana) - 122001"}]
[null,{"$f":"'Attach 3(JV)'!B12","v":""}]
[]
[]
["Dear Sir,"]
[]
[{"$f":"\"We hereby certify that equipment and materials to be supplied are produced in \" &H26 & \" eligible source \" & F26","v":"We hereby certify that equipment and materials to be supplied are produced in [Name of Countries],  eligible source country."},null,null,null,null,"Equipments & Materials produced in [Name of countries]","Company incorporated & registered in [Name of countries]"]
[{"$f":"\"We hereby certify that our company is incorporated and registered in \" &I26 & \" eligible source \" &G26","v":"We hereby certify that our company is incorporated and registered in [Name of Countries],  eligible source country."},null,null,null,null,"[Name of Countries]","[Name of Countries]",{"$f":"IF(F18 = \"\", \"\", F18& \", \")","v":"[Name of Countries], "},"[Name of Countries], "]
[null,null,null,null,null,null,null,"",""]
[null,null,null,null,null,null,null,"",""]
["Date      :",{"$f":"'Attach 3(JV)'!B24","v":""},null,"Printed Name :",{"$f":"'Attach 3(JV)'!E24","v":""},null,null,"",""]
["Place      :",{"$f":"'Attach 3(JV)'!B25","v":""},null,"Designation :",{"$f":"'Attach 3(JV)'!E25","v":""},null,null,"",""]
[null,null,null,null,null,null,null,"",""]
[null,null,null,null,null,null,null,"",""]
[null,null,null,null,null,null,null,"",""]
[null,null,null,null,null,{"$f":"IF((8-COUNTBLANK(F18:F25)) <2, \"country.\", \"countries.\")","v":"country."},{"$f":"IF((8-COUNTBLANK(G18:G25)) <2, \"country.\", \"countries.\")","v":"country."},{"$f":"IF(COUNTBLANK(F18:F25) =8, \"[Enter the name of country where from equipments & material shall be supplied]\",CONCATENATE(H18,H19,H20,H21,H22,H23,H24,H25))","v":"[Name of Countries], "},{"$f":"IF(COUNTBLANK(G18:G25) =8, \"[Enter the name of country where from equipments & material shall be supplied]\",CONCATENATE(I18,I19,I20,I21,I22,I23,I24,I25))","v":"[Name of Countries], "}]

{"sheet":"Attach 4 (A)","index":6,"n_rows":26,"n_cols":5,"rows_kept":26,"cut":false,"hidden":false,"merged":[[2,0,2,4],[4,0,4,4],[13,0,13,4],[7,0,7,2],[21,0,21,4],[8,1,8,2],[9,1,9,2],[10,1,10,2],[11,1,11,2]]}
[{"$f":"Basic!A3&Basic!B3","v":"Specification No. :CC/NT/W-GIS/DOM/A06/23/03905"},null,null,null,{"$f":"\"Attachment-4(A) \"","v":"Attachment-4(A) "}]
[]
[{"$f":"'Attach 3(JV)'!A3","v":"400kV GIS Substation Extension Package SS-112 for  (i) Extension of 765/400kV Navsari (New) GIS Substation under ICT Augmentation at Navsari (New) associated with integration of additional 7 GW RE power from Khavda RE park under Phase-III, (ii) Extension of 400/220kV Mysore Substation under Augmentation of transformation capacity by 1x500 MVA, 400/220kV ICT (4th) at Mysore S/S, (iii) Extension of 400kV Indore Substation under Scheme to control fault level at 400kV Indore Substation and (iv) Extension of 400kV Jeypore (POWERGRID) Substation under Transmission scheme for Inter-regional ER-WR interconnection scheme."}]
[]
["(List of Special Maintenance Tools & Tackles)"]
[]
[{"$f":"'Attach 3(JV)'!A7","v":"Bidder’s Name and Address :"},null,null,{"$f":"'Attach 3(JV)'!E7","v":"To:"}]
[{"$f":"'Attach 3(JV)'!A8","v":""},null,null,{"$f":"'Attach 3(JV)'!E8","v":"Contract Services"}]
["Name        :",{"$f":"'Attach 3(JV)'!B9","v":""},null,{"$f":"'Attach 3(JV)'!E9","v":"Power Grid Corporation of India Ltd.,"}]
["Address    :",{"$f":"'Attach 3(JV)'!B10","v":""},null,{"$f":"'Attach 3(JV)'!E10","v":"\"Saudamini\", Plot No. 2, Sector 29"}]
[null,{"$f":"'Attach 3(JV)'!B11","v":""},null,{"$f":"'Attach 3(JV)'!E11","v":"Gurgaon (Haryana) - 122001"}]
[null,{"$f":"'Attach 3(JV)'!B12","v":""}]
["Dear Sir,"]
["We are furnishing below the list of special maintenance tools & tackles for various equipment under the subject package. The prices for these tools & tackles are included in our lumpsum bid price. We further confirm that the list of special maintenance tools & tackles includes all the items specifically identified in your bidding documents as brought out below:"]
["S.No.  ","For Equipment","Item Description","Unit","Quantity"]
[1]
[2]
[3]
[4]
[5]
[]
["Notwithstanding what is stated above, we further confirm that any additional special maintenance tools and tackles, required for the equipment under this package shall be furnished by us at no extra cost to the employer."]
[]
[]
["Date      :",{"$f":"'Attach 3(JV)'!B24","v":""},"Printed Name :",{"$f":"'Attach 3(JV)'!E24","v":""}]
["Place      :",{"$f":"'Attach 3(JV)'!B25","v":""},"Designation :",{"$f":"'Attach 3(JV)'!E25","v":""}]

{"sheet":"Attach 4 (B)","index":7,"n_rows":25,"n_cols":5,"rows_kept":25,"cut":false,"hidden":false,"merged":[[20,1,20,4],[14,0,14,4],[15,1,15,4],[11,1,11,3],[16,1,16,4],[17,1,17,4],[18,1,18,4],[8,1,8,3],[19,1,19,4],[2,0,2,4],[4,0,4,4],[9,1,9,3],[10,1,10,3],[7,0,7,3]]}
[{"$f":"Basic!A3&Basic!B3","v":"Specification No. :CC/NT/W-GIS/DOM/A06/23/03905"},null,null,null,{"$f":"\"Attachment-4(B) \"","v":"Attachment-4(B) "}]
[]
[{"$f":"'Attach 3(JV)'!A3","v":"400kV GIS Substation Extension Package SS-112 for  (i) Extension of 765/400kV Navsari (New) GIS Substation under ICT Augmentation at Navsari (New) associated with integration of additional 7 GW RE power from Khavda RE park under Phase-III, (ii) Extension of 400/220kV Mysore Substation under Augmentation of transformation capacity by 1x500 MVA, 400/220kV ICT (4th) at Mysore S/S, (iii) Extension of 400kV Indore Substation under Scheme to control fault level at 400kV Indore Substation and (iv) Extension of 400kV Jeypore (POWERGRID) Substation under Transmission scheme for Inter-regional ER-WR interconnection scheme."}]
[]
["(List of Special Maintenance Tools & Tackles)"]
[]
[{"$f":"'Attach 3(JV)'!A7","v":"Bidder’s Name and Address :"},null,null,null,{"$f":"'Attach 3(JV)'!E7","v":"To:"}]
[{"$f":"'Attach 3(JV)'!A8","v":""},null,null,null,{"$f":"'Attach 3(JV)'!E8","v":"Contract Services"}]
["Name        :",{"$f":"'Attach 3(JV)'!B9","v":""},null,null,{"$f":"'Attach 3(JV)'!E9","v":"Power Grid Corporation of India Ltd.,"}]
["Address    :",{"$f":"'Attach 3(JV)'!B10","v":""},null,null,{"$f":"'Attach 3(JV)'!E10","v":"\"Saudamini\", Plot No. 2, Sector 29"}]
[null,{"$f":"'Attach 3(JV)'!B11","v":""},null,null,{"$f":"'Attach 3(JV)'!E11","v":"Gurgaon (Haryana) - 122001"}]
[null,{"$f":"'Attach 3(JV)'!B12","v":""}]
["Dear Sir,"]
[]
["We are furnishing below the list of special maintenance tools & tackles for various equipment under the subject package. The prices for these tools & tackles which are to be taken back after the completion of the work by us are not included in our lumpsum bid price. We further confirm that the list of special maintenance tools & tackles includes all the items specifically identified in your bidding documents as brought out below:"]
["(a)"]
["(b)"]
["(c)"]
["(d)"]
["(e)"]
["(f)"]
[]
[]
["Date      :",{"$f":"'Attach 3(JV)'!B24","v":""},null,"Printed Name :",{"$f":"'Attach 3(JV)'!E24","v":""}]
["Place      :",{"$f":"'Attach 3(JV)'!B25","v":""},null,"Designation :",{"$f":"'Attach 3(JV)'!E25","v":""}]

{"sheet":"Attach 5","index":8,"n_rows":28,"n_cols":8,"rows_kept":28,"cut":false,"hidden":false,"merged":[[10,1,10,2],[11,1,11,2],[2,0,2,4],[4,0,4,4],[8,1,8,2],[9,1,9,2],[7,0,7,2],[22,0,23,4],[14,0,14,4],[15,0,16,0],[15,1,16,1],[15,2,16,2],[15,3,15,4]]}
[{"$f":"Basic!A3&Basic!B3","v":"Specification No. :CC/NT/W-GIS/DOM/A06/23/03905"},null,null,null,{"$f":"\"Attachment-5 \"","v":"Attachment-5 "}]
[]
[{"$f":"'Attach 3(JV)'!A3","v":"400kV GIS Substation Extension Package SS-112 for  (i) Extension of 765/400kV Navsari (New) GIS Substation under ICT Augmentation at Navsari (New) associated with integration of additional 7 GW RE power from Khavda RE park under Phase-III, (ii) Extension of 400/220kV Mysore Substation under Augmentation of transformation capacity by 1x500 MVA, 400/220kV ICT (4th) at Mysore S/S, (iii) Extension of 400kV Indore Substation under Scheme to control fault level at 400kV Indore Substation and (iv) Extension of 400kV Jeypore (POWERGRID) Substation under Transmission scheme for Inter-regional ER-WR interconnection scheme."}]
[]
["(Subcontractors Proposed by the Bidder)"]
[]
[{"$f":"'Attach 3(JV)'!A7","v":"Bidder’s Name and Address :"},null,null,{"$f":"'Attach 3(JV)'!E7","v":"To:"}]
[{"$f":"'Attach 3(JV)'!A8","v":""},null,null,{"$f":"'Attach 3(JV)'!E8","v":"Contract Services"}]
["Name        :",{"$f":"'Attach 3(JV)'!B9","v":""},null,{"$f":"'Attach 3(JV)'!E9","v":"Power Grid Corporation of India Ltd.,"}]
["Address    :",{"$f":"'Attach 3(JV)'!B10","v":""},null,{"$f":"'Attach 3(JV)'!E10","v":"\"Saudamini\", Plot No. 2, Sector 29"}]
[null,{"$f":"'Attach 3(JV)'!B11","v":""},null,{"$f":"'Attach 3(JV)'!E11","v":"Gurgaon (Haryana) - 122001"}]
[null,{"$f":"'Attach 3(JV)'!B12","v":""}]
[]
["Dear Sir,"]
["1.We hereby furnish the details of the items/ sub-assemblies (supply items), we propose to buy for the purpose of furnishing and installation of the subject Package :"]
["Sl. No.","Item Description","Quantity proposed to be bought/sub-contracted","Details of the proposed sub-contractor/sub-vendor "]
[null,null,null,"Name ","Address"]
[1]
[2]
[3,null,null,null,null,null,null,true]
[4]
[5]
["2. We hereby  delare that we would not subcontract the erection portion of the contract without prior approval of the Employer.\n\n"]
[]
[]
[]
["Date      :",{"$f":"'Attach 3(JV)'!B24","v":""},"Printed Name :",{"$f":"'Attach 3(JV)'!E24","v":""}]
["Place      :",{"$f":"'Attach 3(JV)'!B25","v":""},"Designation :",{"$f":"'Attach 3(JV)'!E25","v":""}]

{"sheet":"Attach 5A","index":9,"n_rows":25,"n_cols":5,"rows_kept":25,"cut":false,"hidden":false,"merged":[[2,0,2,4],[10,1,10,2],[6,0,6,2],[7,1,7,2],[8,1,8,2],[9,1,9,2],[3,0,3,4],[21,0,21,4],[13,0,13,4],[14,0,15,0],[14,1,15,1],[14,2,15,2],[14,3,14,4]]}
[{"$f":"Basic!A3&Basic!B3","v":"Specification No. :CC/NT/W-GIS/DOM/A06/23/03905"},null,null,null,"ATTACHMENT-5A"]
[]
[{"$f":"'Attach 3(JV)'!A3","v":"400kV GIS Substation Extension Package SS-112 for  (i) Extension of 765/400kV Navsari (New) GIS Substation under ICT Augmentation at Navsari (New) associated with integration of additional 7 GW RE power from Khavda RE park under Phase-III, (ii) Extension of 400/220kV Mysore Substation under Augmentation of transformation capacity by 1x500 MVA, 400/220kV ICT (4th) at Mysore S/S, (iii) Extension of 400kV Indore Substation under Scheme to control fault level at 400kV Indore Substation and (iv) Extension of 400kV Jeypore (POWERGRID) Substation under Transmission scheme for Inter-regional ER-WR interconnection scheme."}]
[" "]
[]
[{"$f":"'Attach 3(JV)'!A7","v":"Bidder’s Name and Address :"},null,null,{"$f":"'Attach 3(JV)'!E7","v":"To:"}]
[{"$f":"'Attach 3(JV)'!A8","v":""},null,null,{"$f":"'Attach 3(JV)'!E8","v":"Contract Services"}]
["Name        :",{"$f":"'Attach 3(JV)'!B9","v":""},null,{"$f":"'Attach 3(JV)'!E9","v":"Power Grid Corporation of India Ltd.,"}]
["Address    :",{"$f":"'Attach 3(JV)'!B10","v":""},null,{"$f":"'Attach 3(JV)'!E10","v":"\"Saudamini\", Plot No. 2, Sector 29"}]
[null,{"$f":"'Attach 3(JV)'!B11","v":""}]
[null,{"$f":"'Attach 3(JV)'!B12","v":""}]
[]
["Dear Sir,"]
["1. We hereby furnish the details of the items, components, raw material, services which we propose to buy/avail from Micro and Small Enterprises (MSEs) for the purpose of completion of works under the subject package :"]
["Sl. No.","Item Description","Quantity proposed to be bought/sub-contracted","Name of Micro and Small Enterprises (MSEs) "]
[null,null,null,"Name & Address","Category\n(Micro or Small)\n"]
[1]
[2]
[3]
[4]
[5]
["2. The above is a list of items we propose to procure from MSEs. However, based on the situations during the execution of the contract, the above list may undergo changes. We hereby confirm that the details regarding actual procurement from MSEs carried out by us, as per the format provided at Section VI, Forms and Procedures, Volume-I of bidding documents, shall be submitted along with the bills for payment against supplies made/works done during execution of contract."]
[]
["Date      :",{"$f":"'Attach 3(JV)'!B24","v":""},"Printed Name :",{"$f":"'Attach 3(JV)'!E24","v":""}]
["Place      :",{"$f":"'Attach 3(JV)'!B25","v":""},"Designation :",{"$f":"'Attach 3(JV)'!E25","v":""}]

{"sheet":"Attach 5B","index":10,"n_rows":24,"n_cols":5,"rows_kept":24,"cut":false,"hidden":true,"merged":[[10,1,10,2],[20,3,20,4],[3,0,3,4],[13,0,13,4],[14,0,15,0],[14,1,15,1],[14,2,15,2],[14,3,15,4],[16,3,16,4],[17,3,17,4],[19,3,19,4],[2,0,2,4],[6,0,6,2],[7,1,7,2],[8,1,8,2],[9,1,9,2]]}
[{"$f":"Basic!B3","v":"CC/NT/W-GIS/DOM/A06/23/03905"},null,null,null,"ATTACHMENT-5A"]
[]
[{"$f":"'Attach 3(JV)'!A3","v":"400kV GIS Substation Extension Package SS-112 for  (i) Extension of 765/400kV Navsari (New) GIS Substation under ICT Augmentation at Navsari (New) associated with integration of additional 7 GW RE power from Khavda RE park under Phase-III, (ii) Extension of 400/220kV Mysore Substation under Augmentation of transformation capacity by 1x500 MVA, 400/220kV ICT (4th) at Mysore S/S, (iii) Extension of 400kV Indore Substation under Scheme to control fault level at 400kV Indore Substation and (iv) Extension of 400kV Jeypore (POWERGRID) Substation under Transmission scheme for Inter-regional ER-WR interconnection scheme."}]
["(Declaration to source material/equipment and services from within Arunachal Pradesh)"]
[]
[{"$f":"'Attach 3(JV)'!A7","v":"Bidder’s Name and Address :"},null,null,{"$f":"'Attach 3(JV)'!E7","v":"To:"}]
[{"$f":"'Attach 3(JV)'!A8","v":""},null,null,{"$f":"'Attach 3(JV)'!E8","v":"Contract Services"}]
["Name        :",{"$f":"'Attach 3(JV)'!B9","v":""},null,{"$f":"'Attach 3(JV)'!E9","v":"Power Grid Corporation of India Ltd.,"}]
["Address    :",{"$f":"'Attach 3(JV)'!B10","v":""},null,{"$f":"'Attach 3(JV)'!E10","v":"\"Saudamini\", Plot No. 2, Sector 29"}]
[null,{"$f":"'Attach 3(JV)'!B11","v":""}]
[null,{"$f":"'Attach 3(JV)'!B12","v":""}]
[]
["Dear Sir,"]
["In line with ITB Clause 9.3 (e), we intend to supply following items which are to be manufactured within Arunachal Pradesh. \n\nWe further  declare that  we would source material / services for atleast 30% of the Installation Price of Second /Services contract from within Arunachal Pradesh."]
["Sl. No.","Item Description","Quantity proposed to be bought/sub-contracted","Details / write-up to engage the Locals sub-contractor/sub-vendor "]
[]
[1]
[2]
[3]
[4]
[5]
[]
["Date      :",{"$f":"'Attach 3(JV)'!B24","v":""},"Printed Name :",{"$f":"'Attach 3(JV)'!E24","v":""}]
["Place      :",{"$f":"'Attach 3(JV)'!B25","v":""},"Designation :",{"$f":"'Attach 3(JV)'!E25","v":""}]

{"sheet":"Attach 6","index":11,"n_rows":50,"n_cols":8,"rows_kept":50,"cut":false,"hidden":false,"merged":[[44,2,44,3],[40,2,40,3],[41,2,41,3],[20,2,20,3],[22,0,22,4],[23,0,23,4],[31,0,31,4],[38,2,38,3],[36,2,36,3],[37,2,37,3],[43,2,43,3],[32,0,32,4],[34,2,34,3],[35,2,35,3],[39,2,39,3],[42,2,42,3],[15,2,15,3],[7,0,7,3],[30,0,30,4],[2,0,2,4],[4,0,4,4],[13,0,13,4],[8,1,8,3],[9,1,9,3],[10,1,10,3],[11,1,11,3],[16,2,16,3],[19,2,19,3],[17,2,17,3],[18,2,18,3]]}
[{"$f":"Basic!A3&Basic!B3","v":"Specification No. :CC/NT/W-GIS/DOM/A06/23/03905"},null,null,null,{"$f":"\"Attachment-6 \"","v":"Attachment-6 "}]
[]
[{"$f":"'Attach 3(JV)'!A3","v":"400kV GIS Substation Extension Package SS-112 for  (i) Extension of 765/400kV Navsari (New) GIS Substation under ICT Augmentation at Navsari (New) associated with integration of additional 7 GW RE power from Khavda RE park under Phase-III, (ii) Extension of 400/220kV Mysore Substation under Augmentation of transformation capacity by 1x500 MVA, 400/220kV ICT (4th) at Mysore S/S, (iii) Extension of 400kV Indore Substation under Scheme to control fault level at 400kV Indore Substation and (iv) Extension of 400kV Jeypore (POWERGRID) Substation under Transmission scheme for Inter-regional ER-WR interconnection scheme."}]
[]
["(Alternative, Deviations and Exceptions to the Provisions)"]
[]
[{"$f":"'Attach 3(JV)'!A7","v":"Bidder’s Name and Address :"},null,null,null,{"$f":"'Attach 3(JV)'!E7","v":"To:"}]
[{"$f":"'Attach 3(JV)'!A8","v":""},null,null,null,{"$f":"'Attach 3(JV)'!E8","v":"Contract Services"}]
["Name        :",{"$f":"'Attach 3(JV)'!B9","v":""},null,null,{"$f":"'Attach 3(JV)'!E9","v":"Power Grid Corporation of India Ltd.,"}]
["Address    :",{"$f":"'Attach 3(JV)'!B10","v":""},null,null,{"$f":"'Attach 3(JV)'!E10","v":"\"Saudamini\", Plot No. 2, Sector 29"}]
[null,{"$f":"'Attach 3(JV)'!B11","v":""},null,null,{"$f":"'Attach 3(JV)'!E11","v":"Gurgaon (Haryana) - 122001"}]
[null,{"$f":"'Attach 3(JV)'!B12","v":""}]
["Dear Sir,"]
["The bidder shall itemize any deviation from the Specifications included in his bid. Each item shall be listed (separate sheets may be used and enclosed with this Attachment) with the following information:"]
[]
["Sl. No.","Reference clause in the Specifications","Deviation",null,"Cost of withdrawal of the deviation"]
[]
[]
[]
[null,null,null,null,null,null,null,true]
[]
[]
["The above deviations and variations are exhaustive. We confirm that we shall withdraw the deviations proposed by us at the cost of withdrawal indicated in this attachment, failing which our bid may be rejected and Bid Security forfeited."]
["Except for the above deviations and variations, the entire work shall be performed as per your specifications and documents.  Further, we agree that any deviations, conditionality or reservation introduced in this Attachment-6 and/or in the Bid form, Price schedules & Technical Data Sheets and covering letter, or in any other part of the bid will be reviewed to conduct a determination of the substantial responsiveness of the bid."]
[]
["Date      :",{"$f":"'Attach 3(JV)'!B24","v":""},null,"Printed Name :",{"$f":"'Attach 3(JV)'!E24","v":""}]
["Place      :",{"$f":"'Attach 3(JV)'!B25","v":""},null,"Designation :",{"$f":"'Attach 3(JV)'!E25","v":""}]
[]
[]
[{"$f":"A1","v":"Specification No. :CC/NT/W-GIS/DOM/A06/23/03905"},null,null,null,{"$f":"\"Annexure I to\" & E1","v":"Annexure I toAttachment-6 "}]
[]
[{"$f":"A5","v":"(Alternative, Deviations and Exceptions to the Provisions)"}]
["Extra Sheet"]
[]
["Sl. No.","Reference clause in the Specifications","Deviation",null,"Cost of withdrawal of the deviation"]
[]
[]
[]
[]
[]
[]
[]
[]
[]
[]
[]
[]
[]
["Date      :",{"$f":"B26","v":""},null,"Printed Name :",{"$f":"E26","v":""}]
["Place      :",{"$f":"B27","v":""},null,"Designation :",{"$f":"E27","v":""}]

{"sheet":"Attach 7","index":12,"n_rows":23,"n_cols":5,"rows_kept":23,"cut":false,"hidden":false,"merged":[[2,0,2,4],[4,0,4,4],[14,0,14,4],[8,1,8,3],[9,1,9,3],[10,1,10,3],[11,1,11,3],[7,0,7,3]]}
[{"$f":"Basic!A3&Basic!B3","v":"Specification No. :CC/NT/W-GIS/DOM/A06/23/03905"},null,null,null,{"$f":"\"Attachment-7 \"","v":"Attachment-7 "}]
[]
[{"$f":"'Attach 3(JV)'!A3","v":"400kV GIS Substation Extension Package SS-112 for  (i) Extension of 765/400kV Navsari (New) GIS Substation under ICT Augmentation at Navsari (New) associated with integration of additional 7 GW RE power from Khavda RE park under Phase-III, (ii) Extension of 400/220kV Mysore Substation under Augmentation of transformation capacity by 1x500 MVA, 400/220kV ICT (4th) at Mysore S/S, (iii) Extension of 400kV Indore Substation under Scheme to control fault level at 400kV Indore Substation and (iv) Extension of 400kV Jeypore (POWERGRID) Substation under Transmission scheme for Inter-regional ER-WR interconnection scheme."}]
[]
["(Details of Alternative Bid)"]
[]
[{"$f":"'Attach 3(JV)'!A7","v":"Bidder’s Name and Address :"},null,null,null,{"$f":"'Attach 3(JV)'!E7","v":"To:"}]
[{"$f":"'Attach 3(JV)'!A8","v":""},null,null,null,{"$f":"'Attach 3(JV)'!E8","v":"Contract Services"}]
["Name        :",{"$f":"'Attach 3(JV)'!B9","v":""},null,null,{"$f":"'Attach 3(JV)'!E9","v":"Power Grid Corporation of India Ltd.,"}]
["Address    :",{"$f":"'Attach 3(JV)'!B10","v":""},null,null,{"$f":"'Attach 3(JV)'!E10","v":"\"Saudamini\", Plot No. 2, Sector 29"}]
[null,{"$f":"'Attach 3(JV)'!B11","v":""},null,null,{"$f":"'Attach 3(JV)'!E11","v":"Gurgaon (Haryana) - 122001"}]
[null,{"$f":"'Attach 3(JV)'!B12","v":""}]
[]
[]
["No Alternative Bid"]
[]
[]
[]
[]
[]
[]
["Date      :",{"$f":"'Attach 3(JV)'!B24","v":""},null,"Printed Name :",{"$f":"'Attach 3(JV)'!E24","v":""}]
["Place      :",{"$f":"'Attach 3(JV)'!B25","v":""},null,"Designation :",{"$f":"'Attach 3(JV)'!E25","v":""}]

{"sheet":"Attach 9","index":13,"n_rows":52,"n_cols":8,"rows_kept":52,"cut":false,"hidden":false,"merged":[[19,0,21,0],[22,0,24,0],[30,1,30,3],[28,1,28,3],[33,1,33,3],[34,1,34,3],[25,0,27,0],[25,1,25,3],[26,1,26,3],[28,0,30,0],[2,0,2,7],[4,0,4,7],[15,0,15,7],[8,1,8,3],[9,1,9,3],[10,1,10,3],[11,1,11,3],[7,0,7,3],[51,1,51,7],[37,1,37,3],[39,1,39,3],[40,1,40,3],[42,1,42,3],[43,1,43,3],[38,1,38,3],[41,1,41,3],[41,0,43,0],[38,0,40,0],[35,0,37,0],[35,1,35,3],[36,1,36,3],[17,4,17,7],[45,0,45,7],[46,0,46,7],[29,1,29,3],[27,1,27,3],[22,1,22,3],[23,1,23,3],[24,1,24,3],[20,1,20,3],[19,1,19,3],[21,1,21,3],[17,0,18,0],[17,1,18,3],[31,0,33,0],[31,1,31,3],[32,1,32,3]]}
[{"$f":"Basic!A3&Basic!B3","v":"Specification No. :CC/NT/W-GIS/DOM/A06/23/03905"}]
[]
[{"$f":"'Attach 3(JV)'!A3","v":"400kV GIS Substation Extension Package SS-112 for  (i) Extension of 765/400kV Navsari (New) GIS Substation under ICT Augmentation at Navsari (New) associated with integration of additional 7 GW RE power from Khavda RE park under Phase-III, (ii) Extension of 400/220kV Mysore Substation under Augmentation of transformation capacity by 1x500 MVA, 400/220kV ICT (4th) at Mysore S/S, (iii) Extension of 400kV Indore Substation under Scheme to control fault level at 400kV Indore Substation and (iv) Extension of 400kV Jeypore (POWERGRID) Substation under Transmission scheme for Inter-regional ER-WR interconnection scheme."}]
[]
["(Work Completion Schedule)"]
[]
[{"$f":"'Attach 3(JV)'!A7","v":"Bidder’s Name and Address :"}]
[{"$f":"'Attach 3(JV)'!A8","v":""}]
["Name        :",{"$f":"'Attach 3(JV)'!B9","v":""}]
["Address    :",{"$f":"'Attach 3(JV)'!B10","v":""}]
[null,{"$f":"'Attach 3(JV)'!B11","v":""}]
[null,{"$f":"'Attach 3(JV)'!B12","v":""}]
[]
["Dear Sir,"]
[]
[{"$f":"\"We hereby declare that the following Work Completion Schedule shall be followed by us in furnishing and installation of the subject Package i.e., \" & 'Attach 3(JV)'!A3 & \" for the period commencing from the effective date of Contract to us :\"","v":"We hereby declare that the following Work Completion Schedule shall be followed by us in furnishing and installation of the subject Package i.e., 400kV GIS Substation Extension Package SS-112 for  (i) Extension of 765/400kV Navsari (New) GIS Substation under ICT Augmentation at Navsari (New) associated with integration of additional 7 GW RE power from Khavda RE park under Phase-III, (ii) Extension of 400/220kV Mysore Substation under Augmentation of transformation capacity by 1x500 MVA, 400/220kV ICT (4th) at Mysore S/S, (iii) Extension of 400kV Indore Substation under Scheme to control fault level at 400kV Indore Substation and (iv) Extension of 400kV Jeypore (POWERGRID) Substation under Transmission scheme for Inter-regional ER-WR interconnection scheme. for the period commencing from the effective date of Contract to us :"}]
[]
["Sl. No.","Description of Work",null,null,"Period in months from the effective date of contract "]
[null,null,null,null,"Extension of 765/400kV Navsari (New) GIS Substation under ICT Augmentation at Navsari (New) associated with integration of additional 7 GW RE power from Khavda RE park under Phase-III","Extension of 400/220kV Mysore Substation under Augmentation of transformation capacity by 1x500 MVA, 400/220kV ICT (4th) at Mysore S/S","Extension of 400kV Indore Substation under Scheme to control fault level at 400kV Indore Substation ","Extension of 400kV Jeypore (POWERGRID) Substation under Transmission scheme for Inter-regional ER-WR interconnection scheme"]
[1,"Detailed Engineering and drawing submission"]
[null,"a) commencement"]
[null,"b) completion"]
[2,"Procurement of equipment/ components & assembly"]
[null,"a) commencement"]
[null,"b) completion"]
[3,"Type Tests"]
[null,"a) commencement"]
[null,"b) completion"]
[4,"Manufacturing"]
[null,"a) commencement"]
[null,"b) completion"]
[5,"Shipments & Delivery "]
[null,"a) commencement"]
[null,"b) completion"]
[6,"Establishment of site office"]
[7,"Installation at Site "]
[null,"a) commencement"]
[null,"b) completion"]
[8,"Testing & Pre-commissioning"]
[null,"a) commencement"]
[null,"b) completion"]
[9,"Trial Operation "]
[null,"a) commencement"]
[null,"b) completion"]
[null,null,null,null,{"$f":"IF((E44>20),\"You are exceeding the completion schedule as specified in the bidding documents.\",\"\")","v":""},{"$f":"IF((F44>12),\"You are exceeding the completion schedule as specified in the bidding documents.\",\"\")","v":""},{"$f":"IF((G44>15),\"You are exceeding the completion schedule as specified in the bidding documents.\",\"\")","v":""},{"$f":"IF((H44>18),\"You are exceeding the completion schedule as specified in the bidding documents.\",\"\")","v":""}]
[{"$f":"IF((G44>15),\"You are exceeding the completion schedule as specified in the bidding documents.\",\"\")","v":""}]
[{"$f":"IF((H44>15),\"You are exceeding the completion schedule as specified in the bidding documents.\",\"\")","v":""}]
["Date      :",{"$f":"'Attach 3(JV)'!B24","v":""},null,{"$f":"'Attach 3(JV)'!D24","v":"Printed Name :"}]
["Place      :",{"$f":"'Attach 3(JV)'!B25","v":""},null,{"$f":"'Attach 3(JV)'!D25","v":"Designation :"}]
[]
[]
["Note :","Bidders to enclose a detailed network covering all the activities to be undertaken for completion of the project indicating key dates for various milestones for each phase constituent-wise."]

{"sheet":"Attach 10","index":14,"n_rows":19,"n_cols":5,"rows_kept":19,"cut":false,"hidden":false,"merged":[[11,1,11,3],[7,0,7,3],[15,0,15,4],[2,0,2,4],[4,0,4,4],[8,1,8,3],[9,1,9,3],[10,1,10,3]]}
[{"$f":"Basic!A3&Basic!B3","v":"Specification No. :CC/NT/W-GIS/DOM/A06/23/03905"},null,null,null,{"$f":"\"Attachment-10 \"","v":"Attachment-10 "}]
[]
[{"$f":"'Attach 3(JV)'!A3","v":"400kV GIS Substation Extension Package SS-112 for  (i) Extension of 765/400kV Navsari (New) GIS Substation under ICT Augmentation at Navsari (New) associated with integration of additional 7 GW RE power from Khavda RE park under Phase-III, (ii) Extension of 400/220kV Mysore Substation under Augmentation of transformation capacity by 1x500 MVA, 400/220kV ICT (4th) at Mysore S/S, (iii) Extension of 400kV Indore Substation under Scheme to control fault level at 400kV Indore Substation and (iv) Extension of 400kV Jeypore (POWERGRID) Substation under Transmission scheme for Inter-regional ER-WR interconnection scheme."}]
[]
["(Guarantee Declaration)"]
[]
[{"$f":"'Attach 3(JV)'!A7","v":"Bidder’s Name and Address :"},null,null,null,{"$f":"'Attach 3(JV)'!E7","v":"To:"}]
[{"$f":"'Attach 3(JV)'!A8","v":""},null,null,null,{"$f":"'Attach 3(JV)'!E8","v":"Contract Services"}]
["Name        :",{"$f":"'Attach 3(JV)'!B9","v":""},null,null,{"$f":"'Attach 3(JV)'!E9","v":"Power Grid Corporation of India Ltd.,"}]
["Address    :",{"$f":"'Attach 3(JV)'!B10","v":""},null,null,{"$f":"'Attach 3(JV)'!E10","v":"\"Saudamini\", Plot No. 2, Sector 29"}]
[null,{"$f":"'Attach 3(JV)'!B11","v":""},null,null,{"$f":"'Attach 3(JV)'!E11","v":"Gurgaon (Haryana) - 122001"}]
[null,{"$f":"'Attach 3(JV)'!B12","v":""}]
[]
["Dear Sir,"]
[]
["We conform that the equipments offered shall have minimum (or a muximum, as the case may be) performance specified in Technical Specification. We further guarantee the performance/efficiency of the equipments in response to the Technical Specifications. "]
[]
["Date      :",{"$f":"'Attach 3(JV)'!B24","v":""},null,"Printed Name :",{"$f":"'Attach 3(JV)'!E24","v":""}]
["Place      :",{"$f":"'Attach 3(JV)'!B25","v":""},null,"Designation :",{"$f":"'Attach 3(JV)'!E25","v":""}]

{"sheet":"Attach 11","index":15,"n_rows":83,"n_cols":26,"rows_kept":83,"cut":false,"hidden":false,"merged":[[58,0,58,4],[60,0,60,4],[70,0,70,4],[72,1,72,2],[77,1,77,2],[64,1,64,2],[65,1,65,2],[66,1,66,2],[67,1,67,2],[78,1,78,2],[73,1,73,2],[74,1,74,2],[75,1,75,2],[76,1,76,2],[44,1,44,2],[49,1,49,2],[50,1,50,2],[45,1,45,2],[46,1,46,2],[47,1,47,2],[48,1,48,2],[39,1,39,2],[42,0,42,4],[21,1,21,2],[30,0,30,4],[32,0,32,4],[36,1,36,2],[22,1,22,2],[17,1,17,2],[37,1,37,2],[38,1,38,2],[18,1,18,2],[19,1,19,2],[20,1,20,2],[23,0,23,4],[24,0,24,4],[27,0,27,4],[7,0,7,2],[2,0,2,4],[4,0,4,4],[14,0,14,4],[16,1,16,2],[8,1,8,2],[9,1,9,2],[10,1,10,2],[11,1,11,2]]}
[{"$f":"Basic!A3&Basic!B3","v":"Specification No. :CC/NT/W-GIS/DOM/A06/23/03905"},null,null,null,{"$f":"\"Attachment-11 \"","v":"Attachment-11 "}]
[null,null,null,null,null,null,null,null,null,null,null,null,null,null,null,null,null,null,null,null,null,null,null,null,null,{"$f":"'Attach 3(JV)'!Z2","v":0}]
[{"$f":"Basic!B1","v":"400kV GIS Substation Extension Package SS-112 for  (i) Extension of 765/400kV Navsari (New) GIS Substation under ICT Augmentation at Navsari (New) associated with integration of additional 7 GW RE power from Khavda RE park under Phase-III, (ii) Extension of 400/220kV Mysore Substation under Augmentation of transformation capacity by 1x500 MVA, 400/220kV ICT (4th) at Mysore S/S, (iii) Extension of 400kV Indore Substation under Scheme to control fault level at 400kV Indore Substation and (iv) Extension of 400kV Jeypore (POWERGRID) Substation under Transmission scheme for Inter-regional ER-WR interconnection scheme."}]
[]
["(Information regarding Ex-employees of POWERGRID in our Organisation)"]
[]
[{"$f":"'Attach 3(JV)'!A7","v":"Bidder’s Name and Address :"},null,null,{"$f":"'Attach 3(JV)'!E7","v":"To:"}]
[{"$f":"'Attach 3(JV)'!A8","v":""},null,null,{"$f":"'Attach 3(JV)'!E8","v":"Contract Services"}]
["Name        :",{"$f":"'Attach 3(JV)'!B9","v":""},null,{"$f":"'Attach 3(JV)'!E9","v":"Power Grid Corporation of India Ltd.,"}]
["Address    :",{"$f":"'Attach 3(JV)'!B10","v":""},null,{"$f":"'Attach 3(JV)'!E10","v":"\"Saudamini\", Plot No. 2, Sector 29"}]
[null,{"$f":"'Attach 3(JV)'!B11","v":""},null,{"$f":"'Attach 3(JV)'!E11","v":"Gurgaon (Haryana) - 122001"}]
[null,{"$f":"'Attach 3(JV)'!B12","v":""}]
["Dear Sir,"]
[]
["We declare that we are aware of and have gone through the “Code of Business Conduct and Ethics for Senior Management Personnel”1 and “Code of Business Conduct and Ethics for Board Members”1 of POWERGRID (hereinafter referred to as the “Code of Conduct”). We further understand that as per the “Code of Conduct”, Senior Management Personnel including Board Members, who have retired/resigned from POWERGRID,  shall not accept any appointment or post, as detailed in the referred “Code of Conduct”, within 1 year from the date of cessation of service/directorship unless approved by the Competent Authority. \n\nAccordingly,We hereby furnish the details of ex-employees of POWERGRID who had retired/ resigned at the level of General Manager and above from POWERGRID and subsequently have been employed by us:"]
[]
["Sl. No.","Name of the person with designation in POWERGRID",null,"Date of Retirement/ resignation from POWERGRID","Date of joining and designation in our organisation"]
[1]
[2]
[3]
[4]
[5]
[6]
["*In case the date of joining in the bidder’s organization of such ex-employee is within 1 year from the date of retirement/resignation from POWERGRID, No Objection Certificate/ approval from the Competent Authority must be furnished along with the bid or subsequent through clarification pursuant to ITB Clause 21."]
["In case of non-submission of No Objection Certificate/approval of the Competent Authority, as required, We understand that POWERGRID shall deal with such cases as per its Policy and procedures in vogue, which may also result in rejection of our bid. We also confirm that POWERGRID shall be the sole judge in this regard. \n\nWe further declare that any misrepresentation or submission of false/forged documents/information in this regard shall be dealt with as per the provisions of the Integrity Pact and/or the Bidding Documents and/or POWERGRID’s policy and procedures.\n"]
["Date      :",{"$f":"'Attach 3(JV)'!B24","v":""},"Printed Name :",{"$f":"'Attach 3(JV)'!E24","v":""}]
["Place      :",{"$f":"'Attach 3(JV)'!B25","v":""},"Designation :",{"$f":"'Attach 3(JV)'!E25","v":""}]
["Note:  \n\n1. “Code of Business Conduct and Ethics for Senior Management Personnel” and “Code of Business Conduct and Ethics for Board Members” are available on POWERGRID’s website https://www.powergridindia.com. \n\n2. The information in similar format should be furnished for each partner of joint venture in case of joint venture bid.\n\n3. In case bidder has furnished no details on ex-employees of POWERGRID or has left blank or has indicated ‘-‘ against the same, it shall be deemed that they have not employed any such person in their organization.   \n"]
[{"$f":"A1","v":"Specification No. :CC/NT/W-GIS/DOM/A06/23/03905"},null,null,null,{"$f":"E1","v":"Attachment-11 "}]
[]
[{"$f":"A3","v":"400kV GIS Substation Extension Package SS-112 for  (i) Extension of 765/400kV Navsari (New) GIS Substation under ICT Augmentation at Navsari (New) associated with integration of additional 7 GW RE power from Khavda RE park under Phase-III, (ii) Extension of 400/220kV Mysore Substation under Augmentation of transformation capacity by 1x500 MVA, 400/220kV ICT (4th) at Mysore S/S, (iii) Extension of 400kV Indore Substation under Scheme to control fault level at 400kV Indore Substation and (iv) Extension of 400kV Jeypore (POWERGRID) Substation under Transmission scheme for Inter-regional ER-WR interconnection scheme."}]
[]
["(Information regarding Ex-employees of POWERGRID in our Organisation)"]
[]
[{"$f":"'Attach 3(JV)'!A15","v":"Name(s) and Addresse(s) of other partner(s)"},null,null,{"$f":"D7","v":"To:"}]
[{"$f":"'Attach 3(JV)'!B16","v":""},null,null,{"$f":"D8","v":"Contract Services"}]
["Name        :",{"$f":"'Attach 3(JV)'!B17:D17","v":""},null,{"$f":"D9","v":"Power Grid Corporation of India Ltd.,"}]
["Address    :",{"$f":"'Attach 3(JV)'!B18:D18","v":""},null,{"$f":"D10","v":"\"Saudamini\", Plot No. 2, Sector 29"}]
[null,{"$f":"'Attach 3(JV)'!B19:D19","v":""},null,{"$f":"D11","v":"Gurgaon (Haryana) - 122001"}]
[null,{"$f":"'Attach 3(JV)'!B20:D20","v":""}]
["Dear Sir,"]
[]
["We hereby furnish the details of ex-employees of POWERGRID who had retired/ resigned at the level of General Manager and above from POWERGRID and subsequently have been employed by us:"]
[]
["Sl. No.","Name of the person with designation in POWERGRID",null,"Date of Retirement/ resignation from POWERGRID","Date of joining and designation in our organisation"]
[1]
[2]
[3]
[4]
[5]
[6]
[]
[]
["Date      :",{"$f":"B26","v":""},"Printed Name :",{"$f":"D26","v":""}]
["Place      :",{"$f":"B27","v":""},"Designation :",{"$f":"D27","v":""}]
[]
[{"$f":"A29","v":"Specification No. :CC/NT/W-GIS/DOM/A06/23/03905"},null,null,null,{"$f":"E29","v":"Attachment-11 "}]
[]
[{"$f":"A31","v":"400kV GIS Substation Extension Package SS-112 for  (i) Extension of 765/400kV Navsari (New) GIS Substation under ICT Augmentation at Navsari (New) associated with integration of additional 7 GW RE power from Khavda RE park under Phase-III, (ii) Extension of 400/220kV Mysore Substation under Augmentation of transformation capacity by 1x500 MVA, 400/220kV ICT (4th) at Mysore S/S, (iii) Extension of 400kV Indore Substation under Scheme to control fault level at 400kV Indore Substation and (iv) Extension of 400kV Jeypore (POWERGRID) Substation under Transmission scheme for Inter-regional ER-WR interconnection scheme."}]
[]
["(Information regarding Ex-employees of POWERGRID in our Organisation)"]
[]
[{"$f":"'Attach 3(JV)'!A15","v":"Name(s) and Addresse(s) of other partner(s)"},null,null,{"$f":"D7","v":"To:"}]
[{"$f":"'Attach 3(JV)'!E16","v":""},null,null,{"$f":"D8","v":"Contract Services"}]
["Name        :",{"$f":"'Attach 3(JV)'!E17","v":""},null,{"$f":"D9","v":"Power Grid Corporation of India Ltd.,"}]
["Address    :",{"$f":"'Attach 3(JV)'!E18","v":""},null,{"$f":"D10","v":"\"Saudamini\", Plot No. 2, Sector 29"}]
[null,{"$f":"'Attach 3(JV)'!E19","v":""},null,{"$f":"D11","v":"Gurgaon (Haryana) - 122001"}]
[null,{"$f":"'Attach 3(JV)'!E20","v":""}]
["Dear Sir,"]
[]
["We hereby furnish the details of ex-employees of POWERGRID who had retired/ resigned at the level of General Manager and above from POWERGRID and subsequently have been employed by us:"]
[]
["Sl. No.","Name of the person with designation in POWERGRID",null,"Date of Retirement/ resignation from POWERGRID","Date of joining and designation in our organisation"]
[1]
[2]
[3]
[4]
[5]
[6]
[]
[]
["Date      :",{"$f":"B54","v":""},"Printed Name :",{"$f":"D54","v":""}]
["Place      :",{"$f":"B55","v":""},"Designation :",{"$f":"D55","v":""}]

{"sheet":"Attach 12","index":16,"n_rows":98,"n_cols":11,"rows_kept":98,"cut":false,"hidden":false,"merged":[[89,1,89,5],[77,1,77,5],[81,0,81,5],[82,1,82,5],[83,1,83,5],[85,1,85,5],[18,0,18,5],[10,1,10,3],[11,1,11,3],[14,0,14,5],[15,2,15,3],[16,2,16,3],[2,0,2,5],[4,0,4,5],[7,0,7,3],[8,1,8,3],[9,1,9,3],[94,0,94,5],[19,1,19,5],[26,0,26,5],[27,1,27,5],[34,0,34,5],[35,1,35,5],[36,2,36,3],[42,0,42,5],[43,1,43,5],[50,0,50,5],[51,1,51,5],[58,0,58,5],[59,1,59,5],[64,1,64,5],[70,1,70,5],[71,1,71,5]]}
[{"$f":"Basic!A3&Basic!B3","v":"Specification No. :CC/NT/W-GIS/DOM/A06/23/03905"},null,null,null,null,"ATTACHMENT-12"]
[]
[{"$f":"'Attach 3(JV)'!A3","v":"400kV GIS Substation Extension Package SS-112 for  (i) Extension of 765/400kV Navsari (New) GIS Substation under ICT Augmentation at Navsari (New) associated with integration of additional 7 GW RE power from Khavda RE park under Phase-III, (ii) Extension of 400/220kV Mysore Substation under Augmentation of transformation capacity by 1x500 MVA, 400/220kV ICT (4th) at Mysore S/S, (iii) Extension of 400kV Indore Substation under Scheme to control fault level at 400kV Indore Substation and (iv) Extension of 400kV Jeypore (POWERGRID) Substation under Transmission scheme for Inter-regional ER-WR interconnection scheme."}]
[]
["(Price Adjustment Data)"]
[]
[{"$f":"'[6]Attach-3 (QR)'!A7:E7","v":"Bidder’s Name and Address :"},null,null,null,{"$f":"'[7]Attach 3 (JV)'!F5","v":"To:"}]
[{"$f":"'Attach 3(JV)'!A8","v":""},null,null,null,{"$f":"'[7]Attach 3 (JV)'!F6","v":"Contract Services"}]
["Name        :",{"$f":"'Attach 3(JV)'!B9","v":""},null,null,{"$f":"'[7]Attach 3 (JV)'!F7","v":"Power Grid Corporation of India Ltd.,"}]
["Address    :",{"$f":"'Attach 3(JV)'!B10","v":""},null,null,{"$f":"'[7]Attach 3 (JV)'!F8","v":"\"Saudamini\", Plot No.-2"}]
[null,{"$f":"'Attach 3(JV)'!B11","v":""},null,null,{"$f":"'[7]Attach 3 (JV)'!F9","v":"Sector-29, "}]
[null,{"$f":"'Attach 3(JV)'!B12","v":""},null,null,{"$f":"'[7]Attach 3 (JV)'!F10","v":"Gurgaon (Haryana) - 122001"}]
[]
["Dear Sir,"]
["We hereby furnish the relevant details pertaining to the price adjustment provisions for equipment as specified in your specifications and documents for the subject Package. The necessary documentary evidence is enclosed."]
["Sl. No.","Name of Materials/Labour","Value of co-efficient",null,"Name of the published index","Value of index as 30 days prior to date set for opening of bids"]
[1,2,3,null,4,5]
["In accordance with Clause 2, Appendix-2, Form of Contract Agreement, Section-VI; Forms. Volume-I"]
["A) For Equipment Ex-works Price Component "]
["I","Circuit Breaker"]
["a)","Raw Material"]
["i)",null,"a=",null,"IEEMA"]
["ii)",null,"b=",null,"IEEMA"]
["iii)",null,"c=",null,"IEEMA"]
["iv)",null,"d=",null,"IEEMA"]
["b)","Labour","l=",null,"Indian field labour index – namely All India average consumer price index for Industrial Workers (monthly)  (Base: 2016= 100), as published by Labour Bureau, Shimla, Government of India (www.labourbureau.nic.in)."]
["The sum of the value of coefficients for raw materials: a+b+c+d=0.55 to 0.65 and sum of all the coefficients including labour shall be a+b+c+d+l=0.85."]
["II","Current Transformer"]
["a)","Raw Material"]
["i)",null,"a=",null,"IEEMA"]
["ii)",null,"b=",null,"IEEMA"]
["iii)",null,"c=",null,"IEEMA"]
["iv)",null,"d=",null,"IEEMA"]
["b)","Labour I=","l=",null,"Indian field labour index – namely All India average consumer price index for Industrial Workers (monthly)  (Base: 2016= 100), as published by Labour Bureau, Shimla, Government of India (www.labourbureau.nic.in)."]
["The sum of the value of coefficients for raw materials: a+b+c+d=0.55 to 0.65 and sum of all the coefficients including labour shall be a+b+c+d+l=0.85."]
["I","Capacitive VoltageTransformer"]
["a)","Raw Material"]
["i)",null,"a=",null,"IEEMA"]
["ii)",null,"b=",null,"IEEMA"]
["iii)",null,"c=",null,"IEEMA"]
["iv)",null,"d=",null,"IEEMA"]
["b)","Labour","l=",null,"Indian field labour index – namely All India average consumer price index for Industrial Workers (monthly)  (Base: 2016= 100), as published by Labour Bureau, Shimla, Government of India (www.labourbureau.nic.in)."]
["The sum of the value of coefficients for raw materials: a+b+c+d=0.55 to 0.65 and sum of all the coefficients including labour shall be a+b+c+d+l=0.85."]
["IV","Isolators"]
["a)","Raw Material"]
["i)",null,"a=",null,"IEEMA"]
["ii)",null,"b=",null,"IEEMA"]
["iii)",null,"c=",null,"IEEMA"]
["iv)",null,"d=",null,"IEEMA"]
["b)","Labour I=","l =",null,"Indian field labour index – namely All India average consumer price index for Industrial Workers (monthly)  (Base: 2016= 100), as published by Labour Bureau, Shimla, Government of India (www.labourbureau.nic.in)."]
["The sum of the value of coefficients for raw materials: a+b+c+d=0.55 to 0.65 and sum of all the coefficients including labour shall be a+b+c+d+l=0.85."]
["I","Surge Arrester"]
["a)","Raw Material"]
["i)",null,"a=",null,"IEEMA"]
["ii)",null,"b=",null,"IEEMA"]
["iii)",null,"c=",null,"IEEMA"]
["iv)",null,"d=",null,"IEEMA"]
["b)","Labour ","l =",null,"Indian field labour index – namely All India average consumer price index for Industrial Workers (monthly)  (Base: 2016= 100), as published by Labour Bureau, Shimla, Government of India (www.labourbureau.nic.in)."]
["The sum of the value of coefficients for raw materials: a+b+c+d=0.55 to 0.65 and sum of all the coefficients including labour shall be a+b+c+d+l=0.85."]
["II","PVC/XLPE Insulated Power and Control Cable"]
["a)","a=PVC Compound",null,0.15]
["b)","Published Price of Metal",null,null,"IEEMA"]
[null,"i) Aluminium per MT",null,null,"IEEMA"]
[null,"ii) Copper per MT",null,null,"IEEMA"]
["c)","Weight in MT of Metal per kM\n(Size wise)"]
[null,"i)"]
[null,"ii)"]
[null,"iii)"]
[null,"iv)"]
[null,"v)"]
["III","Substation Structures"]
["i)","Lattice Steel Structures & Pipe Structures (including bolts & nuts, washers & foundation bolts)"]
["a)","Raw Materials"]
["i)","a=Structural steel","a=",0.57999999999999996,"JPC Market Price (Retail) for average Price of Steel Angles of size 50 x 50 x 6 mm of all cities in Rs./MT as published by Joint Plant Committee(JPC)."]
["ii)","b=Electrolytic Zinc","b=",0.16,"IEEMA"]
["b)","Labour","l =",0.11,"Indian field labour index – namely All India average consumer price index for Industrial Workers (monthly)  (Base: 2016= 100), as published by Labour Bureau, Shimla, Government of India (www.labourbureau.nic.in)."]
[]
["VIII.  ","Series Reactor [ 420 kV, 12 ohm, 2500A, 1-ph air core dry type Series Reactor]"]
["a)","Raw Material",null,null,null,null,null,null,null,null,"Copper(a)"]
["i)","Aluminium(a)",null,null,null,null,null,null,null,null,"Aluminium(a)"]
["b)","Labour I=",null,{"$f":"0.85-D80","v":0.85},"Indian field labour index – namely All India average consumer price index for Industrial Workers (monthly)  (Base: 2001= 100), as published by Labour Bureau, Shimla, Government of India (www.labourbureau.nic.in).\n"]
["The value of coefficient for raw materials: a=0.65 to 0.73 and value of coefficient for labour shall be between 0.12 and 0.20,  so that sum of all the coefficients including labour shall be a+l=0.85"]
["B.","For Installation Price Component"]
["I","Installation price component (including Civil works but excluding ‘supply & placement of reinforcement steel’ and ‘concreting’)  "]
["i)","Labour I=","l =",0.8,"Indian field labour index – namely All India average consumer price index for Industrial Workers (monthly)  (Base: 2016= 100), as published by Labour Bureau, Shimla, Government of India (www.labourbureau.nic.in)."]
["II","Supply & Placement of Reinforcement Steel "]
["i)","HSD","a=",0.1,"Wholesale Price Index Number for `HSD’(Individual Commodity) (monthly)  (Base: 2011-12=100), as published by Office of Economic Advisor, Ministry of Commerce & Industry(www.eaindustry.nic.in)."]
["ii)","Labour I=","l =",0.05,"Indian field labour index – namely All India average consumer price index for Industrial Workers (monthly)  (Base: 2016= 100), as published by Labour Bureau, Shimla, Government of India (www.labourbureau.nic.in)."]
["iii)","Manufacture of Basic Metals","b=",0.65,"Wholesale Price Index Number for   `Manufacture of Basic Metals’(Group Item) (monthly)  (Base: 2011-12=100), as published by Office of Economic Advisor, Ministry of Commerce & Industry(www.eaindustry.nic.in)."]
["III","For Concereting"]
["i)","HSD","a=",0.2,"Wholesale Price Index Number for `HSD’(Individual Commodity) (monthly)  (Base: 2011-12=100), as published by Office of Economic Advisor, Ministry of Commerce & Industry(www.eaindustry.nic.in)."]
["ii)","Labour I=","l =",0.1,"Indian field labour index – namely All India average consumer price index for Industrial Workers (monthly)  (Base: 2016= 100), as published by Labour Bureau, Shimla, Government of India (www.labourbureau.nic.in)."]
["iii)","Manufacture of cement, lime and plaster","b=",0.3,"Wholesale Price Index Number for `Manufacture of cement, lime and plaster’(Group Item) (monthly)  (Base: 2011-12=100), as published by Office of Economic Advisor, Ministry of Commerce & Industry (www.eaindustry.nic.in)\n"]
["iv)","Cutting, shaping and finishing of stone","c=",0.2,"Wholesale Price Index Number for `Cutting, shaping and finishing of stone’(Group Item) (monthly) (Base: 2011-12=100), as published by Office of Economic Advisor, Ministry of Commerce & Industry(www.eaindustry.nic.in)."]
["The Bidders are required to estimate and indicate the values of different coefficients for each of the items in the price variation formulae within the specified range such that their summation is as specified in the Bidding Documents. Where no value or ‘-’ or ‘shall be furnished later’ is specified against the coefficient, the same will be deemed to be zero and the fixed component would be suitably adjusted. If the values of all coefficients in price variation formulae indicated by the Bidder are within the specified range but their sum exceeds the summation specified in the Bidding Documents, the values of the coefficients shall be pro-rata adjusted such that the summation remains as per the provisions of the Bidding Documents. If the values of all coefficients indicated by the Bidder are within the specified range but their summation is less than the value specified in the Bidding Documents, the values of the coefficients as indicated by the Bidder shall be considered as such and the fixed component in the price variation formulae would be suitably adjusted. Further, if any of values of the coefficients indicated by the Bidder is out of the range specified in the Bidding Documents, the lower of the values, as indicated by the Bidder vis-à-vis lower value of the range for that coefficient specified in the Bidding Documents, shall be considered and the fixed component would be suitably adjusted."]
[]
["Date      :",{"$f":"'Attach 3(JV)'!B24","v":""},null,null,"Printed Name :",{"$f":"'Attach 3(JV)'!E24","v":""}]
["Place      :",{"$f":"'Attach 3(JV)'!B25","v":""},null,null,"Designation   :",{"$f":"'Attach 3(JV)'!E25","v":""}]

{"sheet":"Attach 13","index":17,"n_rows":19,"n_cols":7,"rows_kept":19,"cut":false,"hidden":false,"merged":[[2,0,2,4],[4,0,4,4],[15,0,15,4],[8,1,8,3],[9,1,9,3],[10,1,10,3],[11,1,11,3],[7,0,7,3]]}
[{"$f":"Basic!A3&Basic!B3","v":"Specification No. :CC/NT/W-GIS/DOM/A06/23/03905"},null,null,null,{"$f":"\"Attachment-13 \"","v":"Attachment-13 "}]
[]
[{"$f":"'Attach 3(JV)'!A3","v":"400kV GIS Substation Extension Package SS-112 for  (i) Extension of 765/400kV Navsari (New) GIS Substation under ICT Augmentation at Navsari (New) associated with integration of additional 7 GW RE power from Khavda RE park under Phase-III, (ii) Extension of 400/220kV Mysore Substation under Augmentation of transformation capacity by 1x500 MVA, 400/220kV ICT (4th) at Mysore S/S, (iii) Extension of 400kV Indore Substation under Scheme to control fault level at 400kV Indore Substation and (iv) Extension of 400kV Jeypore (POWERGRID) Substation under Transmission scheme for Inter-regional ER-WR interconnection scheme."}]
[]
["(Declaration regarding Social Accountability)"]
[]
[{"$f":"'Attach 3(JV)'!A7","v":"Bidder’s Name and Address :"},null,null,null,{"$f":"'Attach 3(JV)'!E7","v":"To:"}]
[{"$f":"'Attach 3(JV)'!A8","v":""},null,null,null,{"$f":"'Attach 3(JV)'!E8","v":"Contract Services"}]
["Name        :",{"$f":"'Attach 3(JV)'!B9","v":""},null,null,{"$f":"'Attach 3(JV)'!E9","v":"Power Grid Corporation of India Ltd.,"}]
["Address    :",{"$f":"'Attach 3(JV)'!B10","v":""},null,null,{"$f":"'Attach 3(JV)'!E10","v":"\"Saudamini\", Plot No. 2, Sector 29"}]
[null,{"$f":"'Attach 3(JV)'!B11","v":""},null,null,{"$f":"'Attach 3(JV)'!E11","v":"Gurgaon (Haryana) - 122001"},null,"  "]
[null,{"$f":"'Attach 3(JV)'!B12","v":""}]
[]
["Dear Sir,"]
[]
["We conform that we stand committed to comply to all requirements of Social Accountability Standards i.e., SA8000 (latest Standard available at www.sa-intl.org) and maintain the necessary records. "]
[]
["Date      :",{"$f":"'Attach 3(JV)'!B24","v":""},null,"Printed Name :",{"$f":"'Attach 3(JV)'!E24","v":""}]
["Place      :",{"$f":"'Attach 3(JV)'!B25","v":""},null,"Designation :",{"$f":"'Attach 3(JV)'!E25","v":""}]

{"sheet":"Attach 14","index":18,"n_rows":25,"n_cols":5,"rows_kept":25,"cut":false,"hidden":false,"merged":[[11,1,11,3],[15,0,15,4],[2,0,2,4],[4,0,4,4],[7,0,7,3],[8,1,8,3],[9,1,9,3],[10,1,10,3]]}
[{"$f":"Basic!A3&Basic!B3","v":"Specification No. :CC/NT/W-GIS/DOM/A06/23/03905"},null,null,null,{"$f":"\"Attachment-14 \"","v":"Attachment-14 "}]
[]
[{"$f":"'Attach 3(JV)'!A3","v":"400kV GIS Substation Extension Package SS-112 for  (i) Extension of 765/400kV Navsari (New) GIS Substation under ICT Augmentation at Navsari (New) associated with integration of additional 7 GW RE power from Khavda RE park under Phase-III, (ii) Extension of 400/220kV Mysore Substation under Augmentation of transformation capacity by 1x500 MVA, 400/220kV ICT (4th) at Mysore S/S, (iii) Extension of 400kV Indore Substation under Scheme to control fault level at 400kV Indore Substation and (iv) Extension of 400kV Jeypore (POWERGRID) Substation under Transmission scheme for Inter-regional ER-WR interconnection scheme."}]
[]
["Integrity Pact"]
[]
[{"$f":"'Attach 3(JV)'!A7","v":"Bidder’s Name and Address :"},null,null,null,{"$f":"'Attach 3(JV)'!E7","v":"To:"}]
[{"$f":"'Attach 3(JV)'!A8","v":""},null,null,null,{"$f":"'Attach 3(JV)'!E8","v":"Contract Services"}]
["Name        :",{"$f":"'Attach 3(JV)'!B9","v":""},null,null,{"$f":"'Attach 3(JV)'!E9","v":"Power Grid Corporation of India Ltd.,"}]
["Address    :",{"$f":"'Attach 3(JV)'!B10","v":""},null,null,{"$f":"'Attach 3(JV)'!E10","v":"\"Saudamini\", Plot No. 2, Sector 29"}]
[null,{"$f":"'Attach 3(JV)'!B11","v":""},null,null,{"$f":"'Attach 3(JV)'!E11","v":"Gurgaon (Haryana) - 122001"}]
[null,{"$f":"'Attach 3(JV)'!B12","v":""}]
[]
["Dear Sir,"]
[]
["Integrity Pact is annexed separately herewith this Volume."]
[]
[]
[]
[]
[]
[]
[]
["Date      :",{"$f":"'Attach 3(JV)'!B24","v":""},null,"Printed Name :",{"$f":"'Attach 3(JV)'!E24","v":""}]
["Place      :",{"$f":"'Attach 3(JV)'!B25","v":""},null,"Designation :",{"$f":"'Attach 3(JV)'!E25","v":""}]

{"sheet":"Attach 14-IP","index":19,"n_rows":222,"n_cols":9,"rows_kept":222,"cut":false,"hidden":false,"merged":[[200,1,200,4],[200,5,200,8],[204,1,204,4],[204,5,204,8],[185,0,185,3],[185,4,185,8],[188,1,188,8],[181,1,181,8],[192,5,192,8],[194,1,194,4],[197,5,197,8],[198,5,198,8],[194,5,194,8],[192,1,192,4],[160,1,160,8],[165,0,165,8],[167,0,167,8],[169,0,169,8],[184,0,184,3],[184,4,184,8],[179,1,179,8],[182,1,182,8],[162,1,162,8],[163,1,163,8],[171,1,171,8],[173,1,173,8],[175,1,175,8],[177,1,177,8],[158,1,158,8],[141,1,141,8],[142,1,142,8],[143,1,143,8],[144,1,144,8],[145,1,145,8],[147,1,147,8],[146,1,146,8],[148,1,148,8],[149,1,149,8],[151,1,151,8],[154,0,154,3],[154,4,154,8],[155,0,155,3],[155,4,155,8],[150,1,150,8],[125,0,125,8],[127,0,127,8],[129,0,129,8],[131,1,131,8],[133,1,133,8],[136,0,136,3],[136,4,136,8],[137,0,137,3],[137,4,137,8],[113,0,113,3],[113,4,113,8],[114,0,114,3],[114,4,114,8],[111,1,111,8],[117,1,117,8],[119,0,119,8],[121,1,121,8],[123,1,123,8],[94,0,94,8],[96,1,96,8],[98,1,98,8],[100,1,100,8],[102,0,102,8],[104,1,104,8],[106,1,106,8],[108,0,108,8],[110,1,110,8],[80,2,80,8],[82,2,82,8],[84,2,84,8],[86,2,86,8],[90,0,90,3],[90,4,90,8],[91,0,91,3],[91,4,91,8],[88,2,88,8],[89,1,89,8],[67,1,67,8],[69,0,69,8],[71,1,71,8],[73,0,73,3],[73,4,73,8],[74,0,74,3],[74,4,74,8],[76,2,76,8],[78,2,78,8],[57,0,57,8],[59,1,59,8],[61,2,61,8],[63,2,63,8],[46,4,46,8],[47,0,47,3],[47,4,47,8],[46,0,46,3],[65,2,65,8],[51,0,51,8],[55,0,55,8],[0,0,0,8],[1,1,1,8],[2,1,2,8],[3,1,3,8],[4,1,4,8],[5,1,5,8],[36,0,36,8],[49,0,49,8],[53,0,53,8],[39,0,39,8],[40,0,40,8],[41,0,41,8],[42,0,42,8],[43,0,43,8],[44,0,44,8],[30,0,30,8],[31,0,31,8],[32,0,32,8],[33,0,33,8],[34,0,34,8],[35,0,35,8],[37,0,37,8],[38,0,38,8]]}
["Instruction for printing & submitting Integrity Pact"]
["1.","The requisite format of Integrity Pact is getting generated automatically and displayed here below."]
["2.","Take print out of first page on a non-judicial stamp paper of Rs. 100/-  and other seven pages on plain A4 size paper. Such two sets shall be prepared by the bidder."]
["3.","All the pages of both the copies of the Integrity Pact shall be signed by the authorised representative of the bidder and duly stamped."]
["4.","Both the original copies shall be submitted by the bidder in the form of Hard Copy as part of the first envelope before due date & time of submission of the bid."]
["5.","For further details bidders may please refer ITB Clause 9.3 (o)."]
[]
[]
[]
[]
[]
[]
[]
[]
[]
[]
[]
[]
[]
[]
[]
[]
[]
[]
[]
[]
[]
[]
[]
[]
["INTEGRITY PACT"]
["Between"]
["Power Grid Corporation of India Limited "]
["having its Registered Office at B-9, Qutab Institutional Area, Katwaria Sarai,                           New Delhi – 110016 hereinafter referred to as"]
["\"POWERGRID\","]
["and"]
[{"$f":"'Names of Bidder'!D13","v":0}]
[{"$f":"\" having its Registered Office at \" & 'Names of Bidder'!D14 & \" \" & 'Names of Bidder'!D15 & \" \" & 'Names of Bidder'!D16","v":" having its Registered Office at   "}]
[{"$f":"IF('Names of Bidder'!D9 = \"Sole Bidder\", \" \", \" and \")","v":" "}]
[{"$f":"IF('Names of Bidder'!D9= \"Sole Bidder\", \"\", IF('Names of Bidder'!D10=1,'Names of Bidder'!D18,IF('Names of Bidder'!D10=\"2 or More\",'Names of Bidder'!D18&\" & \"&'Names of Bidder'!D23,\"\")))","v":""}]
[{"$f":"IF('Names of Bidder'!D9= \"Sole Bidder\", \"\", \"having its Registered Office at \"&IF('Names of Bidder'!D10=1,'Names of Bidder'!D19&\" \"&'Names of Bidder'!D20&\" \"&'Names of Bidder'!D21,IF('Names of Bidder'!D10=\"2 or More\",'Names of Bidder'!D19&\" & \"&'Names of Bidder'!D20&\" \"&'Names of Bidder'!D21&\" and \" & 'Names of Bidder'!D24&\" & \"&'Names of Bidder'!D25&\" \"&'Names of Bidder'!D26 &IF('Names of Bidder'!D10=\"2 or More\",\" respectively\",\"\"))))","v":""}]
["hereinafter referred to as "]
["\"The Bidder/Contractor\""]
["Preamble"]
[{"$f":"\"POWERGRID intends to award, under laid-down organisational procedures, contract(s) for \" & Basic!B1","v":"POWERGRID intends to award, under laid-down organisational procedures, contract(s) for 400kV GIS Substation Extension Package SS-112 for  (i) Extension of 765/400kV Navsari (New) GIS Substation under ICT Augmentation at Navsari (New) associated with integration of additional 7 GW RE power from Khavda RE park under Phase-III, (ii) Extension of 400/220kV Mysore Substation under Augmentation of transformation capacity by 1x500 MVA, 400/220kV ICT (4th) at Mysore S/S, (iii) Extension of 400kV Indore Substation under Scheme to control fault level at 400kV Indore Substation and (iv) Extension of 400kV Jeypore (POWERGRID) Substation under Transmission scheme for Inter-regional ER-WR interconnection scheme."}]
[]
["(Signature) ",null,null,null,"(Signature) "]
["(For & On behalf of POWERGRID)\n                                                                                             ",null,null,null,{"$f":"\"(For & On behalf of \"&'Attach-3 (QR)'!A8","v":"(For & On behalf of "}]
["Integrity Pact",null,null,null,null,null,null,null,"Page 1 of 8"]
[{"$f":"Basic!B1&\" Package and Specification Number \"&Basic!B3","v":"400kV GIS Substation Extension Package SS-112 for  (i) Extension of 765/400kV Navsari (New) GIS Substation under ICT Augmentation at Navsari (New) associated with integration of additional 7 GW RE power from Khavda RE park under Phase-III, (ii) Extension of 400/220kV Mysore Substation under Augmentation of transformation capacity by 1x500 MVA, 400/220kV ICT (4th) at Mysore S/S, (iii) Extension of 400kV Indore Substation under Scheme to control fault level at 400kV Indore Substation and (iv) Extension of 400kV Jeypore (POWERGRID) Substation under Transmission scheme for Inter-regional ER-WR interconnection scheme. Package and Specification Number CC/NT/W-GIS/DOM/A06/23/03905"}]
[]
["POWERGRID values full compliance with all relevant laws of the land, rules,  regulations, economic use of resources, and of fairness /  transparency in its relations with its Bidders/ Contractors.\""]
[]
["In order to achieve these goals, POWERGRID and the above named Bidder/Contractor enter into this agreement called 'Integrity Pact' which will form a part of the bid."]
[]
["It is hereby agreed by and between the parties as under:"]
[]
["Section I - Commitments of POWERGRID"]
[]
["(1)","POWERGRID commits itself to take all measures necessary to prevent corruption and to observe the following principles "]
[]
[null,"(a)","No employee of POWERGRID, personally or through family members, will in connection with the tender, or the execution of the contract, demand, take a promise for or accept, for him/herself or third person, any material or other benefit which he/she is not legally entitled to"]
[]
[null,"(b)","POWERGRID will, during the tender process treat all Bidder(s) with equity,  fairness and reason. POWERGRID will in particular, before and during the tender process, provide to all Bidder(s) the same information and will not provide to any Bidder(s) confidential/ additional information through which the Bidder(s) could obtain an advantage in relation to the tender process or the contract execution"]
[]
[null,"(c)","POWERGRID will exclude from evaluation of Bids its such employee(s) who has any personal interest in the Companies/Agencies participating in the Bidding/Tendering process and all known prejudiced persons"]
[]
["(2)","If POWERGRID obtains information on the conduct of any of its employee which is a criminal offence under the IPC / PC Act , or if there be a substantive suspicion in this regard, POWERGRID will inform its Chief Vigilance Officer and in addition disciplinary actions can be initiated under POWERGRID’s Rules"]
[]
["Section II - Commitments of the Bidder/Contractor"]
[]
["(1)","The Bidder/Contractor commits itself to take all measures necessary to prevent corruption. The Bidder/Contractor commits itself to observe the following principles during its participation in the tender process and during the contract execution:"]
[]
["(Signature) ",null,null,null,"(Signature) "]
["(For & On behalf of POWERGRID)",null,null,null,{"$f":"E48","v":"(For & On behalf of "}]
["Integrity Pact",null,null,null,null,null,null,null,"Page 2 of 8"]
[null,"(a)","The Bidder/Contractor will not, directly or through any other person or firm, offer, promise or give to any of POWERGRID's employees involved in the tender process or the execution of the contract or to any third person any material or other benefit which it is not legally entitled to, in order to obtain in exchange an advantage of any kind whatsoever during the tender process or during the execution of the contract"]
[]
[null,"(b)","The Bidder/Contractor will not enter into any illegal or undisclosed agreement or understanding, whether formal or informal with other Bidders/Contractors. This applies in particular to prices, specifications, certifications, subsidiary contracts, submission or non-submission of bids or actions to restrict competitiveness or to introduce cartelization in the bidding process."]
[]
[null,"(c )","The Bidder/Contractor shall not pass any information provided by POWERGRID as part of business relationship to others and shall not commit any offence under PC / IPC Act."]
[]
[null,"(d)","The Bidder/Contractor of foreign origin shall disclose the name and address of the Agents/representatives in India, if any, involved directly or indirectly in the Bidding. Similarly, the Bidder/Contractor of Indian Nationality shall furnish the name and address of the foreign principals, if any, involved directly or indirectly in the Bidding."]
[]
[null,"(e )","The Bidder/Contractor will, when presenting his bid, disclose any and all payments made, or committed to or intends to make to agents, brokers or any other intermediaries in connection with the award of the contract and/or with the execution of the contract."]
[]
[null,"(f)","The Bidder/Contractor will not misrepresent facts or furnish false/forged documents/information in order to influence the bidding process or the execution of the contract to the detriment of POWERGRID"]
[]
[null,"(g)","The Bidder/Contractor shall ensure adoption of Integrity Pact by its Sub-contractors and shall be responsible for the same"]
["(2)","The Bidder/Contractor will not instigate third persons to commit offences outlined above or be an accessory to such offences"]
["(Signature) ",null,null,null,"(Signature) "]
["(For & On behalf of POWERGRID)",null,null,null,{"$f":"E48","v":"(For & On behalf of "}]
["Integrity Pact",null,null,null,null,null,null,null,"Page 3 of 8"]
[]
["Section III- Disqualification from tender process and exclusion from future contracts"]
[]
["(1)","If the Bidder, before contract award, has committed a transgression through a violation of Section II or in any other form such as to put his reliability or credibility as Bidder into question, POWERGRID may disqualify the Bidder from the tender process or terminate the contract, if already signed, for such reason"]
[]
["(2)","If the Bidder/Contractor has committed a transgression through a violation of Section II such as to put his reliability or credibility into question, POWERGRID may, after following due procedures, ban /blacklist the Bidder/Contractor in line with POWERGRID’s policy for “Black-Listing of Firms / Banning of Business”.  The imposition and duration of the ban will be determined by the severity of the transgression. The severity will be determined by the circumstances of the case, in particular the number of transgressions, the position of the transgressors within the company hierarchy of the Bidder/Contractor and the amount of the damage. The ban will be imposed for a maximum of 3 years. "]
[]
["(3)","If the Bidder/Contractor can prove that he has restored/recouped the damage caused by him and has installed a suitable corruption prevention system, POWERGRID may revoke the ban prematurely."]
[]
["Section IV - Liability for violation of Integrity Pact"]
[]
["(1)","If POWERGRID has disqualified the Bidder from the tender process prior to the award under Section III, POWERGRID is entitled for forfeiture of the Bid Guarantee under the Bid"]
[]
["(2)","If POWERGRID has terminated the contract under Section III or if POWERGRID is entitled to terminate the contract under Section III, POWERGRID shall be entitled to forfeit the Contract Performance Guarantee of this contract, in full or part thereof as may be decided, besides resorting to other remedies under the contract."]
[]
["Section V- Previous Transgression"]
[]
["(1)","The Bidder shall disclose in its Bid any   transgressions occurred in the last 10 years with any other Public Sector Undertaking or Government Department or any other Company, in any country, that may impinge on the Anti-corruption principle"]
["(2)","If the Bidder makes incorrect statement on this subject, it can be disqualified from the tender process or the contract, if already awarded, can be terminated for such reason and further action can be taken in line with POWERGRID’s policies."]
[]
["(Signature) ",null,null,null,"(Signature) "]
["(For & On behalf of POWERGRID)",null,null,null,{"$f":"E48","v":"(For & On behalf of "}]
["Integrity Pact",null,null,null,null,null,null,null,"Page 4 of 8"]
[]
[]
[]
["Section VI - Equal treatment to all Bidders / Contractors"]
[]
["(1)","POWERGRID will enter into agreements with identical conditions as this one with all Bidders."]
[]
["(2)","POWERGRID will disqualify from the tender process any bidder who does not sign this Pact or violate its provisions."]
[]
["Section VII - Punitive Action against violating Bidders / Contractors "]
[]
["If POWERGRID obtains knowledge of conduct of a Bidder or a Contractor or its subcontractor or of an employee or a representative or an associate of a Bidder or Contractor or his Subcontractor which constitutes corruption, or if POWERGRID has substantive suspicion in this regard, POWERGRID will inform the Chief Vigilance Officer (CVO)."]
[]
["(*)Section VIII - Independent External Monitor/Monitors"]
[]
["(1)","POWERGRID has appointed a panel of Independent External Monitors (IEMs) for this Pact with the approval of Central Vigilance Commission (CVC), Government of India. The names of the IEMs have been indicated in the Bidding Documents. "]
[]
["(2)","The panel of IEMs shall review independently and objectively, whether and to what extent the parties comply with the obligations under this agreement. The panel of IEMs has right of access to all project documentation.  The panel of IEMs may examine any complaint received by them and submit a report to Chairman-cum-Managing Director, POWERGRID, giving joint findings, at the earliest.  The panel of IEMs may also submit a report directly to the CVO and the CVC, in case of suspicion of serious irregularities attracting the provisions of the PC Act. "]
[]
[]
["(Signature) ",null,null,null,"(Signature) "]
["(For & On behalf of POWERGRID)",null,null,null,{"$f":"E48","v":"(For & On behalf of "}]
["Integrity Pact",null,null,null,null,null,null,null,"Page 5 of 8"]
[]
[]
["(3)","The IEM is not subject to instructions by the representatives of the parties and performs his functions neutrally and independently. He / She reports to the Chairman-cum-Managing Director, POWERGRID."]
[]
["(4)","The Bidder(s)/Contractor(s) accepts that the IEM has the right to access without restriction to all documentation of POWERGRID related to this contract including that provided by the Contractor/Bidder. The Bidder/Contractor will also grant the IEM, upon his / her request and demonstration of a valid interest, unrestricted and unconditional access to their  documentation. The same is applicable to Subcontractors. The IEM is under contractual obligation to treat the information and documents of the Bidder(s)/Contractor(s)/Subcontractor(s) with confidentiality."]
[]
["(5)","POWERGRID will provide to the IEMs information as sought by him / her which could have an impact on the contractual relations between POWERGRID and the Bidder/Contractor related to this contract. The IEMs shall also sign declaration on ’Non-Disclosure of Confidential Information’ and of ‘Absence of Conflict of Interest’. In case of any conflict of interest arising at a later date, the IEM shall inform Chairman-cum-Managing Director, POWERGRID and recuse himself/herself from that case"]
[]
["(6)","As soon as the IEM notices, or believes to notice, a violation of this agreement, he / she will so inform the Chairman-cum-Managing Director, POWERGRID and request the Chairman-cum-Managing Director, POWERGRID to discontinue or take corrective action, or to take other relevant action. The IEM can in this regard submit non-binding recommendations. Beyond this, the IEM has no right to demand from the parties that they act in a specific manner, refrain from action or tolerate action. However, the IEM shall give an opportunity to POWERGRID and the Bidder/Contractor, as deemed fit, to present its case before making its recommendations to POWERGRID"]
[]
["(7)","The IEM will submit a written report to the Chairman-cum-Managing Director, POWERGRID within 8 to 10 weeks from the date of reference or intimation to him by POWERGRID and, should the occasion arise, submit proposals for correcting problematic situations"]
[]
["(8)","If the IEM has reported to the Chairman-cum-Managing Director, POWERGRID, a substantiated suspicion of an offence under PC / IPC Act, and the Chairman-cum-Managing Director, POWERGRID has not, within the reasonable time taken visible action to proceed against such offence or reported it to the CVO, the Monitor may also transmit this information directly to the CVC, Government of India."]
[]
[]
["(Signature) ",null,null,null,"(Signature) "]
["(For & On behalf of POWERGRID)",null,null,null,{"$f":"E48","v":"(For & On behalf of "}]
["Integrity Pact",null,null,null,null,null,null,null,"Page 6 of 8"]
[]
[]
[]
["(9)","While representing any matter in relation to the Integrity pact inter-alia including its transgression to the panel of IEMs, POWERGRID and Bidder/Contractor shall not approach the court of law and await the decision of the IEM in the matter"]
[]
["(10)","The word ‘IEM’ would include both singular and plural"]
["(*)","This Section shall be applicable for only those packages wherein the IEMs have been identified in Section – I : Invitation for Bids and/or Clause ITB 9.3 in Section – III: Bid Data Sheets of Conditions of Contract, Volume-I of the Bidding Documents"]
[]
["Section IX - Pact Duration"]
[]
["This Pact begins when both parties have legally signed it. It expires for the Contractor after the closure of the contract and for all other Bidder's six month after the contract has been awarded."]
[]
["Section X - Other Provisions"]
[]
["(1)","This agreement is subject to Indian Law. Place of performance and jurisdiction is the establishment of POWERGRID. The Arbitration clause provided in the main tender document / contract shall not be applicable for any issue / dispute arising under Integrity Pact. "]
[]
["(2)","Changes and supplements as well as termination notices need to be made in writing. Side agreements have not been made."]
[]
["(3)","If the Contractor is a partnership firm or a consortium or Joint Venture, this agreement must be signed by all partners, consortium members and Joint Venture partners."]
[]
["(4)","Nothing in this agreement shall affect the rights of the parties available under the General Conditions of Contract (GCC) and Special Conditions of Contract (SCC)."]
[]
["(5)","Issues like Warranty/Guarantees etc. shall be outside the purview of IEMs."]
[]
["(6)","Views expressed or suggestions/submissions made by the parties and the recommendations of the CVO/IEM# in respect of the violation of this agreement, shall not be relied on or introduced as evidence in the arbitral or judicial proceedings (arising out of the arbitral proceedings) by the parties in connection with the disputes/differences arising out of the subject contract."]
["#","CVO shall be applicable for packages wherein IEM are not identified in Section IFB/BDS of Condition of Contract, Volume-I. IEM shall be applicable for packages wherein IEM are identified in Section IFB/BDS of Condition of Contract, Volume-I."]
[]
["(Signature) ",null,null,null,"(Signature) "]
["(For & On behalf of POWERGRID)",null,null,null,{"$f":"E48","v":"(For & On behalf of "}]
["Integrity Pact",null,null,null,null,null,null,null,"Page 7 of 8"]
[]
["(7)","Should one or several provisions of this agreement turn out to be invalid, the remainder of this agreement remains valid. In this case, the parties will strive to come to an agreement to their original intentions."]
[]
[]
[null,"Signature",null,null,null,"Signature"]
[null,"(For & On behalf of POWERGRID)",null,null,null,{"$f":"E48","v":"(For & On behalf of "}]
[]
[null,"(Office Seal)",null,null,null,"(Office Seal)"]
[]
[]
[null,"Name :",null,null,null,{"$f":"\"Name : \"& 'Names of Bidder'!D32","v":"Name : "}]
[null,"Designation :",null,null,null,{"$f":"\"Designation : \" & 'Names of Bidder'!D33","v":"Designation : "}]
[]
[null,"Witness 1 :",null,null,null,"Witness 1 :"]
[null,"Name :",null,null,null,"Name :"]
[null,"Designation :",null,null,null,"Designation :"]
[]
[null,"Witness 1 :",null,null,null,"Witness 1 :"]
[null,"Name :",null,null,null,"Name :"]
[null,"Designation :",null,null,null,"Designation :"]
[]
[]
[]
[]
[]
[]
[]
[]
[]
[]
[]
[]
[]
[]
["Integrity Pact",null,null,null,null,null,null,null,"Page 8 of 8"]

{"sheet":"Attach 15","index":20,"n_rows":84,"n_cols":8,"rows_kept":84,"cut":false,"hidden":false,"merged":[[17,1,17,3],[18,1,18,3],[20,1,20,3],[2,0,2,4],[4,0,4,4],[7,0,7,3],[8,1,8,3],[9,1,9,3],[19,1,19,3],[34,4,35,4],[35,1,35,3],[34,1,34,3],[43,1,43,3],[10,1,10,3],[26,1,26,3],[11,1,11,3],[15,1,15,4],[16,1,16,4],[12,1,12,3],[22,1,22,4],[21,1,21,4],[23,1,23,3],[24,1,24,3],[25,1,25,3],[27,1,27,3],[28,1,28,3],[29,1,29,3],[40,1,40,3],[39,1,39,3],[30,1,30,3],[31,1,31,3],[32,1,32,3],[33,1,33,3],[38,1,38,3],[63,1,63,3],[56,1,56,3],[52,1,52,3],[57,1,57,3],[61,1,61,3],[60,1,60,3],[51,1,51,3],[53,1,53,3],[54,1,54,3],[55,1,55,3],[50,1,50,3],[41,1,41,3],[42,1,42,3],[47,1,47,3],[48,1,48,3],[44,1,44,3],[45,1,45,3],[46,1,46,3],[66,1,66,3],[67,1,67,3],[68,1,68,3],[64,1,64,3],[65,1,65,3],[78,1,78,4],[79,1,79,4],[81,0,81,4],[36,1,36,3],[37,1,37,3],[76,0,76,4],[77,1,77,4],[58,1,58,3],[59,1,59,3],[49,1,49,3],[73,0,73,4],[62,1,62,3],[69,1,69,3],[70,1,70,3],[71,1,71,3],[72,1,72,3]]}
[{"$f":"Basic!A3&Basic!B3","v":"Specification No. :CC/NT/W-GIS/DOM/A06/23/03905"},null,null,null,{"$f":"\"Attachment-15 \"","v":"Attachment-15 "}]
[]
[{"$f":"Basic!B1","v":"400kV GIS Substation Extension Package SS-112 for  (i) Extension of 765/400kV Navsari (New) GIS Substation under ICT Augmentation at Navsari (New) associated with integration of additional 7 GW RE power from Khavda RE park under Phase-III, (ii) Extension of 400/220kV Mysore Substation under Augmentation of transformation capacity by 1x500 MVA, 400/220kV ICT (4th) at Mysore S/S, (iii) Extension of 400kV Indore Substation under Scheme to control fault level at 400kV Indore Substation and (iv) Extension of 400kV Jeypore (POWERGRID) Substation under Transmission scheme for Inter-regional ER-WR interconnection scheme."}]
[]
["(Option for Interest Bearing Advance(s) (Initial Advance and/or Engineering Advance) and Information for E-payment, PF details and declaration regarding Micro/Small & Medium Enterprises)"]
[]
[null,null,null,null,{"$f":"'Attach 3(JV)'!E7","v":"To:"}]
[{"$f":"'Attach 3(JV)'!A7","v":"Bidder’s Name and Address :"},null,null,null,{"$f":"'Attach 3(JV)'!E8","v":"Contract Services"}]
["Name        :",{"$f":"'Attach 3(JV)'!B9:D9","v":""},null,null,{"$f":"'Attach 3(JV)'!E9","v":"Power Grid Corporation of India Ltd.,"}]
["Address    :",{"$f":"'Attach 3(JV)'!B10:D10","v":""},null,null,{"$f":"'Attach 3(JV)'!E10","v":"\"Saudamini\", Plot No. 2, Sector 29"}]
[null,{"$f":"'Attach 3(JV)'!B11:D11","v":""},null,null,{"$f":"'Attach 3(JV)'!E11","v":"Gurgaon (Haryana) - 122001"}]
[null,{"$f":"'Attach 3(JV)'!B12","v":""}]
[]
["Dear Sir,"]
[]
["I","We have read the provisions in the Bidding Documents regarding furnishing the option for advance payment. Accordingly, as per ITB Clause 9.3 as provided in Section BDS, Section III, Vol.-I of the Bidding Documents, we hereby confirm to opt the following:   "]
[null,"Interest Bearing Advance(s)"]
[null,"(a) Supply Portion:"]
[null,"(i) Interest bearing Initial advance :"]
[null,"(ii) Interest Bearing Engineering Advance :"]
[null,"(b) Services Portion: Interest Bearing Initial Advance"]
[]
["II","We are furnishing the following details of Statutory Registration Numbers and details of Bank for electronic payment."]
["1.           ","Name of the Supplier/ Contractor in whose favour payment is to be made",null,null,{"$f":"B9","v":""}]
["2.           ","Address with PIN Code and State"]
[null,"Registered Office:"]
[]
[]
[null,"Branch Office:"]
[]
[]
[null,"Correspondence Address:"]
[]
[]
["3.(a)       ","Status – Company/others"]
[null,"[Declaration of Micro/ Small/ Medium Enterprise under Micro/ Small & Medium Enterprises Development Act 2006, if applicable]"]
["3.(b)","Are you a MSE owned by SC/ST* entrepreneurs in line with Public Procurement Policy for Micro and Small Enterprises (MSEs) order 2012 including subsequent amendment/notification/order (Indicate Yes/No)",null,null,null,{"$f":"IF(E37=\"Yes\",1,0)","v":0}]
["3.(c)","If 3(b) is ‘Yes’ please mention whether you are (Proprietary MSE/ Partnership MSE/ Private Limited Company) owned by SC/ST entrepreneurs\n"]
["3.(d)","Are you a MSE owned by women in line with Public Procurement Policy for Micro and Small Enterprises (MSEs) order 2012, Public Procurement Policy for Micro and Small Enterprises (MSEs) Amendment Order 2018 including subsequent amendment/notification/order (Indicate Yes/No)"]
["4.           ","Permanent Account (PAN) No."]
["5.           ","GSTIN Numbers"]
["I.","GSTIN in the Sates/UT from where the supply of goods take place "]
[null,"Name of the States/UT",null,null,"GSTIN number"]
["(i)"]
["(ii)"]
["(iii)"]
["II.","GSTIN in the States/UT where the supply for services take place (states where sites under the subject package is situated)"]
[null,"Name of the States/UT",null,null,"GSTIN number"]
["(i)"]
["(ii)"]
["(iii)"]
["(iv)"]
["(v)"]
["6.           ","PF Registration No. of the Company"]
["7.       ","PF Regional Office covered (with Address)"]
[]
[]
["8.       ","Name of Contact Person"]
[null,"Designation"]
["9.       ","Contact Details"]
[null,"Landline(s):"]
[null,"Mobile(s):"]
[null,"Email ID :"]
["10.       ","Bank Details for Electronic Payment"]
[null,"Name of the Bank:"]
[null,"Address of Branch:"]
[]
[null,null,null,null,null,null,null,2]
[null,"Account No.:"]
[null,"Type of Account:"]
[null,"Type of Account:",null,null,{"$f":"IF(H68=1,\"Saving Account\",\"Current Account\")","v":"Current Account"}]
["11.       ","9 digit MICR code printed at bottom in middle, next to cheque no."]
["12.       ","IFSC (for RTGS)/NEFT Code (to be obtained from the Bank) Sample Cancelled Cheque to be enclosed"]
["We hereby declare that the above information are true and correct and we agree that the payment on account of this Contract, in the event of award, be made in the above account maintained in the above mentioned Bank."]
[]
["Remarks:"]
["*The definition of MSEs owned by SC/ST is as given under:"]
["a.","In case of proprietary MSE, proprietor(s) shall be SC /ST."]
["b.","In case of partnership MSE, the SC/ST partners shall be holding at least 51% shares in the unit."]
["c. ","In case of Private Limited companies, at least 51% share shall be held by SC/ST promoters."]
[]
["Documentary evidence: Please provide scanned copy(ies) of the SC/ST certificate(s) issued by District Authority as applicable for SC/ST MSE category as per (a), (b) or (c) above."]
["Date      :",{"$f":"'Attach 3(JV)'!B24","v":""},null,"Printed Name :",{"$f":"'Attach 3(JV)'!E24","v":""}]
["Place      :",{"$f":"'Attach 3(JV)'!B25","v":""},null,"Designation :",{"$f":"'Attach 3(JV)'!E25","v":""}]

{"sheet":"Attach 16","index":21,"n_rows":94,"n_cols":26,"rows_kept":94,"cut":false,"hidden":false,"merged":[[2,0,2,11],[8,1,8,5],[15,0,15,11],[9,1,9,5],[10,1,10,5],[28,3,28,11],[4,0,4,11],[20,1,20,6],[21,1,21,6],[27,3,27,11],[28,1,28,2],[23,7,23,11],[27,1,27,2],[34,3,34,11],[11,1,11,5],[17,1,17,11],[38,2,38,5],[22,7,22,11],[19,1,19,6],[25,1,25,11],[7,0,7,5],[18,1,18,11],[34,1,34,2],[21,7,21,11],[31,3,31,11],[22,1,22,6],[23,1,23,6],[19,7,19,11],[20,7,20,11],[32,1,32,2],[33,3,33,11],[33,1,33,2],[29,3,29,11],[30,3,30,11],[32,3,32,11],[35,1,35,2],[37,1,37,11],[35,3,35,11],[43,2,43,5],[43,6,43,7],[43,8,43,11],[38,6,38,7],[38,8,38,11],[39,2,39,5],[39,6,39,7],[39,8,39,11],[40,2,40,5],[40,6,40,7],[40,8,40,11],[46,1,46,11],[41,1,41,11],[42,2,42,5],[48,6,48,7],[48,2,48,5],[48,8,48,9],[48,10,48,11],[49,10,49,11],[49,2,49,5],[44,2,44,5],[44,6,44,7],[44,8,44,11],[47,1,47,11],[49,8,49,9],[49,6,49,7],[42,6,42,7],[42,8,42,11],[50,10,50,11],[70,4,70,7],[53,2,53,5],[68,1,68,4],[52,10,52,11],[50,2,50,5],[50,6,50,7],[53,8,53,9],[53,10,53,11],[51,10,51,11],[52,8,52,9],[52,2,52,5],[52,6,52,7],[50,8,50,9],[51,8,51,9],[51,2,51,5],[51,6,51,7],[53,6,53,7],[62,2,62,5],[62,6,62,11],[64,2,64,5],[64,6,64,11],[65,2,65,5],[65,7,65,11],[93,1,93,3],[76,1,76,3],[76,4,76,7],[75,4,75,7],[75,1,75,3],[89,1,89,11],[92,7,92,11],[93,7,93,11],[92,1,92,3],[72,8,72,11],[70,8,70,11],[76,8,76,11],[79,7,79,11],[72,1,72,3],[72,4,72,7],[75,8,75,11],[71,4,71,7],[70,1,70,3],[71,1,71,3],[73,1,73,3],[73,4,73,7],[79,2,79,6],[73,8,73,11],[74,8,74,11],[74,1,74,3],[74,4,74,7],[71,8,71,11],[69,1,69,11],[55,1,55,11],[56,1,56,11],[58,1,58,11],[60,2,60,5],[60,6,60,11],[61,2,61,5],[61,6,61,11],[63,2,63,5],[63,6,63,8]]}
[{"$f":"Basic!A3&Basic!B3","v":"Specification No. :CC/NT/W-GIS/DOM/A06/23/03905"},null,null,null,null,null,null,null,null,null,null,{"$f":"\"Attachment-16 \"","v":"Attachment-16 "}]
[null,null,null,null,null,null,null,null,null,null,null,null,null,null,null,null,null,null,null,null,null,null,null,null,null,{"$f":"'Attach 3(JV)'!Z2","v":0}]
[{"$f":"'Attach 3(JV)'!A3","v":"400kV GIS Substation Extension Package SS-112 for  (i) Extension of 765/400kV Navsari (New) GIS Substation under ICT Augmentation at Navsari (New) associated with integration of additional 7 GW RE power from Khavda RE park under Phase-III, (ii) Extension of 400/220kV Mysore Substation under Augmentation of transformation capacity by 1x500 MVA, 400/220kV ICT (4th) at Mysore S/S, (iii) Extension of 400kV Indore Substation under Scheme to control fault level at 400kV Indore Substation and (iv) Extension of 400kV Jeypore (POWERGRID) Substation under Transmission scheme for Inter-regional ER-WR interconnection scheme."}]
[]
["(Additional Information)"]
[]
[{"$f":"'Attach 3(JV)'!A7","v":"Bidder’s Name and Address :"},null,null,null,null,null,{"$f":"'Attach 3(JV)'!E7","v":"To:"}]
[{"$f":"'Attach 3(JV)'!A8","v":""},null,null,null,null,null,{"$f":"'Attach 3(JV)'!E8","v":"Contract Services"}]
["Name        :",{"$f":"'Attach 3(JV)'!B9","v":""},null,null,null,null,{"$f":"'Attach 3(JV)'!E9","v":"Power Grid Corporation of India Ltd.,"}]
["Address    :",{"$f":"'Attach 3(JV)'!B10","v":""},null,null,null,null,{"$f":"'Attach 3(JV)'!E10","v":"\"Saudamini\", Plot No. 2, Sector 29"}]
[null,{"$f":"'Attach 3(JV)'!B11","v":""},null,null,null,null,{"$f":"'Attach 3(JV)'!E11","v":"Gurgaon (Haryana) - 122001"}]
[null,{"$f":"'Attach 3(JV)'!B12","v":""}]
[]
["Dear Sir,"]
[]
["In support of the additional information required as per ITB Sub-Clause 9.3 (p) of the Bidding Documents, we furnish herewith our data/details/documents etc., alongwith other information, as follows (the stipulations have been reproduced in italics for ready reference):"]
[1,"The Bidder shall furnish "]
[null,"A certificate from their Banker(s) (as per prescribed formats in Form 16, Section-VI: Sample Forms and Procedures) indicating various fund based/non fund based limits sanctioned to the Bidder and the extent of utilization as on date.  Such certificate should have been issued not earlier than three months prior to the date of bid opening. Wherever necessary the Employer may make queries with the Bidders’ Bankers.  [Reference ITB clause 9.3(p)(i)]"]
[1.1000000000000001,"In accordance with 1.0, certificate(s) from banker as per requisite format, indicating various fund based/non fund based limits sanctioned to the bidder or each member of the joint venture and the extent of utilization as on date is/are enclosed, as per the following details:"]
[null,{"$f":"IF('Names of Bidder'!D9=\"Sole Bidder\",\"Name of the Bidder (Sole Bidder)\", \"Name of Bidder (Lead Partner)\")","v":"Name of the Bidder (Sole Bidder)"},null,null,null,null,null,{"$f":"B9","v":""}]
[null,"Name of the Banker by whom certificate issued",null,null,null,null,null," "]
[null,"Date of certificate (should not be earlier than 3 months prior to date of bid opening)"]
[null,"Whether fund based/non fund based limits are indicated in the certificate"]
[null,"Whether extent of utilization is indicated in the certificate"]
[]
[1.2,"The Bidder should accordingly also provide the following information/documents "]
["(i)","Details of Banker:"]
[null,"Name of Banker "]
[null,"Address of Banker"]
[]
[]
[]
[null,"Telephone No."]
[null,"Contact Name and Title"]
[null,"Fax No. "]
[null,"E-mail ID "]
[]
["(ii)","As per para 1.0, Authorization Letter(s) from the bidder (in case of JV bidder, from all the partners) addressed to the Banker(s), authorizing POWERGRID to seek queries about the bidder with the Banker(s) and advising the Banker(s) to reply the same promptly, is/are enclosed as per following details:"]
[null,"Sl. No.","Letter Ref.",null,null,null,"Date",null,"Addressed to (name of the Bank)"]
[]
[]
["(iii)","As per para BDS/ITB clause 9.3 q, Bidder shall furnish the details of their Provident Fund Code Number"]
[null,"Sl. No.","Name of Bidders/JV Partners",null,null,null,"Provident Fund Code Number",null,"Details "]
[]
[]
[2,"Litigation History "]
[null,"The bidder should provide detailed information on any litigation or arbitration arising out of contracts completed or under execution by it over the last five years.  A consistent history of awards involving litigation against the Bidder or any partner of JV may result in rejection of Bid. [Reference ITB clause 9.3(p)(ii)]"]
[2.1,"Details of litigation history resulting from Contracts completed or under execution by the bidder over the last five years"]
[null,"Year","Name of client, cause of litigation/arbitration and matter in dispute",null,null,null,"Details of Contract and date",null,"Award for or against the bidder",null,"Disputed amount"]
[null,1]
[null,2]
[null,3]
[null,4]
[null,5]
[]
[3,"Details regarding previous transgressions of Integrity Pact"]
[null,"The bidder should provide detailed information on any transgression of Integrity Pact that occurred in the last 10 years with any other Public Sector Undertaking or Government Department or any other Company, in any country."]
[]
[3.1,"Details regarding previous transgressions of Integrity Pact  that occurred in the last 10 years"]
[]
[null,"Year","Name of client",null,null,null,"Details of Transgression of Integrity Pact  by the bidder"]
[]
[]
[]
[]
[]
[]
[4,"OTHER INFORMATION"]
[4.0999999999999996,"Current Contract Commitments of works in progress"]
[null,"Bidders (individual firms or each partners of JV) should provide information on their current commitments on all contracts that have been awarded, or for which a letter of intent or acceptance has been received, or for contracts approaching completion, but for which an unqualified, full completion certificate has yet to be issued. "]
[null,"Details of Contract",null,null,"Value of outstanding work (Rs.)",null,null,null,"Estimated completion date"]
[]
[]
[]
[]
[]
[]
[4.2,"Financial Data:"]
[null,null,null,null,null,null,null,null,null,null,"Figures Rs in"]
[null,"Details","Actual (Previous five years)",null,null,null,null,"Projection for next five years"]
[null,null,"2020-2021","2019- 2020","2018- 2019","2017- 2018","2016- 2017","2021-2022","2022-2023","2023-2024","2024-2025","2025-2026"]
[null,"Total Assets"]
[null,"Current Assets"]
[null,"Total Liability "]
[null,"Current Liability "]
[null,"Profit before taxes"]
[null,"Profit after taxes"]
[]
[]
[]
[]
[]
["Date      :",{"$f":"'Attach 3(JV)'!B24","v":""},null,null,null,null,"Printed Name :",{"$f":"'Attach 3(JV)'!E24","v":""}]
["Place      :",{"$f":"'Attach 3(JV)'!B25","v":""},null,null,null,null,"Designation :",{"$f":"'Attach 3(JV)'!E25","v":""}]

{"sheet":"Attach 17","index":22,"n_rows":86,"n_cols":26,"rows_kept":86,"cut":false,"hidden":false,"merged":[[80,1,80,2],[81,1,81,2],[73,0,73,4],[75,1,75,2],[76,1,76,2],[77,1,77,2],[78,1,78,2],[79,1,79,2],[42,1,42,2],[45,0,45,4],[70,1,70,2],[48,1,48,2],[49,1,49,2],[50,1,50,2],[51,1,51,2],[52,1,52,2],[63,0,63,4],[67,1,67,2],[68,1,68,2],[69,1,69,2],[53,1,53,2],[61,0,61,4],[47,1,47,2],[35,0,35,4],[39,1,39,2],[40,1,40,2],[41,1,41,2],[10,1,10,2],[11,1,11,2],[14,1,14,4],[15,1,15,4],[26,0,26,4],[33,0,33,4],[2,0,2,4],[4,0,4,4],[7,0,7,2],[8,1,8,2],[9,1,9,2]]}
[{"$f":"Basic!A3&Basic!B3","v":"Specification No. :CC/NT/W-GIS/DOM/A06/23/03905"},null,null,null,{"$f":"\"Attachment-17 \"","v":"Attachment-17 "}]
[null,null,null,null,null,null,null,null,null,null,null,null,null,null,null,null,null,null,null,null,null,null,null,null,null,{"$f":"'[2]Attach 3(JV)'!Z2","v":0}]
[{"$f":"'Attach 3(JV)'!A3","v":"400kV GIS Substation Extension Package SS-112 for  (i) Extension of 765/400kV Navsari (New) GIS Substation under ICT Augmentation at Navsari (New) associated with integration of additional 7 GW RE power from Khavda RE park under Phase-III, (ii) Extension of 400/220kV Mysore Substation under Augmentation of transformation capacity by 1x500 MVA, 400/220kV ICT (4th) at Mysore S/S, (iii) Extension of 400kV Indore Substation under Scheme to control fault level at 400kV Indore Substation and (iv) Extension of 400kV Jeypore (POWERGRID) Substation under Transmission scheme for Inter-regional ER-WR interconnection scheme."}]
[]
["(Declaration for tax exemptions, reductions, allowances or benefits)"]
[]
[{"$f":"'Attach 3(JV)'!A7","v":"Bidder’s Name and Address :"},null,null,{"$f":"'[2]Attach 3(JV)'!E7","v":"To:"}]
[{"$f":"'[2]Attach 3(JV)'!A8","v":""},null,null,{"$f":"'[2]Attach 3(JV)'!E8","v":"Contract Services"}]
["Name        :",{"$f":"'Attach 3(JV)'!B9","v":""},null,{"$f":"'[2]Attach 3(JV)'!E9","v":"Power Grid Corporation of India Ltd.,"}]
["Address    :",{"$f":"'Attach 3(JV)'!B10","v":""},null,{"$f":"'[2]Attach 3(JV)'!E10","v":"\"Saudamini\", Plot No. 2, Sector 29"}]
[null,{"$f":"'Attach 3(JV)'!B11","v":""},null,{"$f":"'[2]Attach 3(JV)'!E11","v":"Gurgaon (Haryana) - 122001"}]
[null,{"$f":"'Attach 3(JV)'!B12","v":""}]
["Dear Sir,"]
[]
[1,"We confirm that we are solely responsible for obtaining following tax exemptions, reductions, allowances or benefits in respect of supplies under the subject package, in case of award. We further confirm that we have considered the same in our bid thereby passing on the benefit to POWERGRID while quoting our prices. In case of our failure to receive such benefits, partly or fully, for any reason whatsoever, the Employer will not compensate us."]
[2,"We are furnishing the following information required by the Employer for issue of requisite certificate if and as permitted in terms of the applicable Govt. of India policies/procedures (in case of award):"]
[]
["Applicable Act, Notification No. and Clause Ref. No.","Sl. No.","Description of item on which applicable","Country of origin","Remarks, if any"]
[]
[]
[]
[]
[]
[]
[]
[]
["(The requirements listed above are as per current Notification of Govt. of India indicated above. These may be modified, if necessary, in terms of the Notifications.)"]
[]
["Date      :",{"$f":"'Attach 3(JV)'!B24","v":""},"Printed Name :",{"$f":"'Attach 3(JV)'!E24","v":""}]
["Place      :",{"$f":"'Attach 3(JV)'!B25","v":""},"Designation :",{"$f":"'Attach 3(JV)'!E25","v":""}]
[]
[{"$f":"A1","v":"Specification No. :CC/NT/W-GIS/DOM/A06/23/03905"},null,null,null,{"$f":"E1","v":"Attachment-17 "}]
[]
[{"$f":"A3","v":"400kV GIS Substation Extension Package SS-112 for  (i) Extension of 765/400kV Navsari (New) GIS Substation under ICT Augmentation at Navsari (New) associated with integration of additional 7 GW RE power from Khavda RE park under Phase-III, (ii) Extension of 400/220kV Mysore Substation under Augmentation of transformation capacity by 1x500 MVA, 400/220kV ICT (4th) at Mysore S/S, (iii) Extension of 400kV Indore Substation under Scheme to control fault level at 400kV Indore Substation and (iv) Extension of 400kV Jeypore (POWERGRID) Substation under Transmission scheme for Inter-regional ER-WR interconnection scheme."}]
[]
["(Information regarding Ex-employees of POWERGRID in our Organisation)"]
[]
[{"$f":"'[2]Attach 3(JV)'!A15","v":"Name(s) and Addresse(s) of other partner(s)"},null,null,{"$f":"D7","v":"To:"}]
[{"$f":"'[2]Attach 3(JV)'!B16","v":""},null,null,{"$f":"D8","v":"Contract Services"}]
["Name        :",{"$f":"'[2]Attach 3(JV)'!B17:D17","v":"…… ……. …….. …… ……. …….. "},null,{"$f":"D9","v":"Power Grid Corporation of India Ltd.,"}]
["Address    :",{"$f":"'[2]Attach 3(JV)'!B18:D18","v":"…… ……. …….. …… ……. …….. "},null,{"$f":"D10","v":"\"Saudamini\", Plot No. 2, Sector 29"}]
[null,{"$f":"'[2]Attach 3(JV)'!B19:D19","v":"…… ……. …….. …… ……. …….. "},null,{"$f":"D11","v":"Gurgaon (Haryana) - 122001"}]
[null,{"$f":"'[2]Attach 3(JV)'!B20:D20","v":"…… ……. …….. …… ……. …….. "}]
["Dear Sir,"]
[]
["We hereby furnish the details of ex-employees of POWERGRID who had retired/ resigned at the level of General Manager and above from POWERGRID and subsequently have been employed by us:"]
[]
["Sl. No.","Name of the person with designation in POWERGRID",null,"Date of Retirement/ resignation from POWERGRID","Date of joining and designation in our organisation"]
[1]
[2]
[3]
[4]
[5]
[6]
[]
[]
["Date      :",{"$f":"B29","v":""},"Printed Name :",{"$f":"D29","v":""}]
["Place      :",{"$f":"B30","v":""},"Designation :",{"$f":"D30","v":""}]
[]
[{"$f":"A32","v":"Specification No. :CC/NT/W-GIS/DOM/A06/23/03905"},null,null,null,{"$f":"E32","v":"Attachment-17 "}]
[]
[{"$f":"A34","v":"400kV GIS Substation Extension Package SS-112 for  (i) Extension of 765/400kV Navsari (New) GIS Substation under ICT Augmentation at Navsari (New) associated with integration of additional 7 GW RE power from Khavda RE park under Phase-III, (ii) Extension of 400/220kV Mysore Substation under Augmentation of transformation capacity by 1x500 MVA, 400/220kV ICT (4th) at Mysore S/S, (iii) Extension of 400kV Indore Substation under Scheme to control fault level at 400kV Indore Substation and (iv) Extension of 400kV Jeypore (POWERGRID) Substation under Transmission scheme for Inter-regional ER-WR interconnection scheme."}]
[]
["(Information regarding Ex-employees of POWERGRID in our Organisation)"]
[]
[{"$f":"'[2]Attach 3(JV)'!A15","v":"Name(s) and Addresse(s) of other partner(s)"},null,null,{"$f":"D7","v":"To:"}]
[{"$f":"'[2]Attach 3(JV)'!E16","v":""},null,null,{"$f":"D8","v":"Contract Services"}]
["Name        :",{"$f":"'[2]Attach 3(JV)'!E17","v":""},null,{"$f":"D9","v":"Power Grid Corporation of India Ltd.,"}]
["Address    :",{"$f":"'[2]Attach 3(JV)'!E18","v":""},null,{"$f":"D10","v":"\"Saudamini\", Plot No. 2, Sector 29"}]
[null,{"$f":"'[2]Attach 3(JV)'!E19","v":""},null,{"$f":"D11","v":"Gurgaon (Haryana) - 122001"}]
[null,{"$f":"'[2]Attach 3(JV)'!E20","v":""}]
["Dear Sir,"]
[]
["We hereby furnish the details of ex-employees of POWERGRID who had retired/ resigned at the level of General Manager and above from POWERGRID and subsequently have been employed by us:"]
[]
["Sl. No.","Name of the person with designation in POWERGRID",null,"Date of Retirement/ resignation from POWERGRID","Date of joining and designation in our organisation"]
[1]
[2]
[3]
[4]
[5]
[6]
[]
[]
["Date      :",{"$f":"B57","v":""},"Printed Name :",{"$f":"D57","v":""}]
["Place      :",{"$f":"B58","v":""},"Designation :",{"$f":"D58","v":""}]

{"sheet":"Attach 18","index":23,"n_rows":31,"n_cols":5,"rows_kept":31,"cut":false,"hidden":false,"merged":[[11,1,11,3],[15,0,24,4],[2,0,2,4],[4,0,4,4],[7,0,7,3],[8,1,8,3],[9,1,9,3],[10,1,10,3]]}
[{"$f":"Basic!A3&Basic!B3","v":"Specification No. :CC/NT/W-GIS/DOM/A06/23/03905"},null,null,null,{"$f":"\"Attachment-18 \"","v":"Attachment-18 "}]
[]
[{"$f":"'Attach 3(JV)'!A3","v":"400kV GIS Substation Extension Package SS-112 for  (i) Extension of 765/400kV Navsari (New) GIS Substation under ICT Augmentation at Navsari (New) associated with integration of additional 7 GW RE power from Khavda RE park under Phase-III, (ii) Extension of 400/220kV Mysore Substation under Augmentation of transformation capacity by 1x500 MVA, 400/220kV ICT (4th) at Mysore S/S, (iii) Extension of 400kV Indore Substation under Scheme to control fault level at 400kV Indore Substation and (iv) Extension of 400kV Jeypore (POWERGRID) Substation under Transmission scheme for Inter-regional ER-WR interconnection scheme."}]
[]
["(Safety Pact)"]
[]
[{"$f":"'Attach 3(JV)'!A7","v":"Bidder’s Name and Address :"},null,null,null,{"$f":"'Attach 3(JV)'!E7","v":"To:"}]
[{"$f":"'Attach 3(JV)'!A8","v":""},null,null,null,{"$f":"'Attach 3(JV)'!E8","v":"Contract Services"}]
["Name        :",{"$f":"'Attach 3(JV)'!B9","v":""},null,null,{"$f":"'Attach 3(JV)'!E9","v":"Power Grid Corporation of India Ltd.,"}]
["Address    :",{"$f":"'Attach 3(JV)'!B10","v":""},null,null,{"$f":"'Attach 3(JV)'!E10","v":"\"Saudamini\", Plot No. 2, Sector 29"}]
[null,{"$f":"'Attach 3(JV)'!B11","v":""},null,null,{"$f":"'Attach 3(JV)'!E11","v":"Gurgaon (Haryana) - 122001"}]
[null,{"$f":"'Attach 3(JV)'!B12","v":""}]
[]
[]
["Dear Sir,"]
["Safety Pact is annexed separately herewith this Volume."]
[]
[]
[]
[]
[]
[]
[]
[]
[]
[]
[]
[]
[]
["Date      :",{"$f":"'Attach 3(JV)'!B24","v":""},null,"Printed Name :",{"$f":"'Attach 3(JV)'!E24","v":""}]
["Place      :",{"$f":"'Attach 3(JV)'!B25","v":""},null,"Designation :",{"$f":"'Attach 3(JV)'!E25","v":""}]

{"sheet":"Attach 19","index":24,"n_rows":31,"n_cols":5,"rows_kept":31,"cut":false,"hidden":false,"merged":[[17,0,17,4],[18,0,18,4],[2,0,2,4],[4,0,4,4],[22,0,22,4],[8,1,8,3],[9,1,9,3],[10,1,10,3],[11,1,11,3],[7,0,7,3],[16,0,16,4]]}
[{"$f":"Basic!A3&Basic!B3","v":"Specification No. :CC/NT/W-GIS/DOM/A06/23/03905"},null,null,null,{"$f":"\"Attachment-19 \"","v":"Attachment-19 "}]
[]
[{"$f":"'Attach 3(JV)'!A3","v":"400kV GIS Substation Extension Package SS-112 for  (i) Extension of 765/400kV Navsari (New) GIS Substation under ICT Augmentation at Navsari (New) associated with integration of additional 7 GW RE power from Khavda RE park under Phase-III, (ii) Extension of 400/220kV Mysore Substation under Augmentation of transformation capacity by 1x500 MVA, 400/220kV ICT (4th) at Mysore S/S, (iii) Extension of 400kV Indore Substation under Scheme to control fault level at 400kV Indore Substation and (iv) Extension of 400kV Jeypore (POWERGRID) Substation under Transmission scheme for Inter-regional ER-WR interconnection scheme."}]
[]
["(Declaration)"]
[]
[{"$f":"'Attach 3(JV)'!A7","v":"Bidder’s Name and Address :"},null,null,null,{"$f":"'Attach 3(JV)'!E7","v":"To:"}]
[{"$f":"'Attach 3(JV)'!A8","v":""},null,null,null,{"$f":"'Attach 3(JV)'!E8","v":"Contract Services"}]
["Name        :",{"$f":"'Attach 3(JV)'!B9","v":""},null,null,{"$f":"'Attach 3(JV)'!E9","v":"Power Grid Corporation of India Ltd.,"}]
["Address    :",{"$f":"'Attach 3(JV)'!B10","v":""},null,null,{"$f":"'Attach 3(JV)'!E10","v":"\"Saudamini\", Plot No. 2, Sector 29"}]
[null,{"$f":"'Attach 3(JV)'!B11","v":""},null,null,{"$f":"'Attach 3(JV)'!E11","v":"Gurgaon (Haryana) - 122001"}]
[null,{"$f":"'Attach 3(JV)'!B12","v":""}]
[]
[]
["Dear Sir,"]
[]
["We confirm that Bid Form and Price Schedules in the Second Envelope have been filled up by us as per the provisions of the Instruction to Bidders. Further, we have noted that the same shall be evaluated as per the provisions of the Bidding Documents."]
["Further, we hereby confirm that except as mentioned in the Attachment – 6 (Alternative, Deviations and Exceptions to the Provisions) hereof  forming part of our First Envelope :"]
["(i)  there are no discrepancies/inconsistencies and deviations/omissions/ reservations to the Bidding Documents, in the Second Envelope bid; \n(ii)  the description of items and the unit thereof in the price schedules in the Second Envelope bid are in conformity with those indicated in the price schedule of the Bidding Documents without any deviation to the specified scope of work. \n\nWe also confirm that in case any discrepancies/ inconsistencies and  deviations/ omissions/ reservations, as referred to in para (i) and (ii) above, is observed in the Second Envelope, the same shall be deemed as withdrawn/rectified without any financial implication, whatsoever to POWERGRID. However, in case of any arithmetical errors, the same shall be governed as per the provision of ITB Sub-Clause 27.2 read in conjunction with BDS."]
[]
[]
[]
[]
[]
[]
[]
[]
[]
[]
["Date      :",{"$f":"'Attach 3(JV)'!B24","v":""},null,"Printed Name :",{"$f":"'Attach 3(JV)'!E24","v":""}]
["Place      :",{"$f":"'Attach 3(JV)'!B25","v":""},null,"Designation :",{"$f":"'Attach 3(JV)'!E25","v":""}]

{"sheet":"Attach-20","index":25,"n_rows":37,"n_cols":5,"rows_kept":37,"cut":false,"hidden":true,"merged":[[22,2,22,4],[24,2,24,4],[25,2,25,4],[23,2,23,4],[36,0,36,4],[35,0,35,4],[30,0,30,4],[26,0,26,4],[27,2,27,3],[28,2,28,3],[29,0,29,4],[2,0,2,4],[4,0,4,4],[7,0,7,3],[8,1,8,3],[9,1,9,3],[20,2,20,4],[21,2,21,4],[10,1,10,3],[11,1,11,3],[16,0,16,4],[18,0,18,4],[19,0,19,4],[15,0,15,4],[17,1,17,3]]}
[{"$f":"Basic!A3&Basic!B3","v":"Specification No. :CC/NT/W-GIS/DOM/A06/23/03905"},null,null,null,{"$f":"\"Attachment-20 \"","v":"Attachment-20 "}]
[]
[{"$f":"'Attach 3(JV)'!A3","v":"400kV GIS Substation Extension Package SS-112 for  (i) Extension of 765/400kV Navsari (New) GIS Substation under ICT Augmentation at Navsari (New) associated with integration of additional 7 GW RE power from Khavda RE park under Phase-III, (ii) Extension of 400/220kV Mysore Substation under Augmentation of transformation capacity by 1x500 MVA, 400/220kV ICT (4th) at Mysore S/S, (iii) Extension of 400kV Indore Substation under Scheme to control fault level at 400kV Indore Substation and (iv) Extension of 400kV Jeypore (POWERGRID) Substation under Transmission scheme for Inter-regional ER-WR interconnection scheme."}]
[]
["(Declaration of Key Managerial Person and Power of Attorney holder)"]
[]
[{"$f":"'Attach 3(JV)'!A7","v":"Bidder’s Name and Address :"},null,null,null,{"$f":"'Attach 3(JV)'!E7","v":"To:"}]
[{"$f":"'Attach 3(JV)'!A8","v":""},null,null,null,{"$f":"'Attach 3(JV)'!E8","v":"Contract Services"}]
["Name        :",{"$f":"'Attach 3(JV)'!B9","v":""},null,null,{"$f":"'Attach 3(JV)'!E9","v":"Power Grid Corporation of India Ltd.,"}]
["Address    :",{"$f":"'Attach 3(JV)'!B10","v":""},null,null,{"$f":"'Attach 3(JV)'!E10","v":"\"Saudamini\", Plot No. 2, Sector 29"}]
[null,{"$f":"'Attach 3(JV)'!B11","v":""},null,null,{"$f":"'Attach 3(JV)'!E11","v":"Gurgaon (Haryana) - 122001"}]
[null,{"$f":"'Attach 3(JV)'!B12","v":""}]
[]
[]
["Dear Sir,"]
["1. We confirm that the declarations made in our bid, particularly Attachment-3 (QR) regarding eligibility/qualification data and documents submitted in our bid in support of the declarations, are true and correct to the best of our knowledge.\n\n2.  We further confirm that we have filled up Attachment-3(QR). We also confirm that in support of meeting the Technical experience requirement as per Annexure-A (BDS), we have enclosed self-certified copy of Contract/ Award Letter and certificate from the utility for which the contract has been executed.\n\n3. We shall furnish clarification to bid, if any sought by Employer pursuant to ITB clause 21.1. We understand that if we fail to rectify/furnish the requested documents if any, within 7 working days’ notice, our bid is liable to be rejected.\n\n4. We understand that any false declaration and/or misrepresentation of facts and/or furnishing of false/forged documents /information may lead to our debarment from participation in Employer tenders and that our Bid Security/ Contract Performance Guarantee may be forfeited besides other actions as deemed to be appropriate as per the provisions of the Bidding Document/Integrity Pact/Employer’s policy.\n"]
["5.  Our Balance Bid Capacity net of works under execution, calculated as per Clause ITB 23.2.1 (i.e. 3T-B), as on 1st date** of the Quarter in which First Envelope Bids are to be opened i.e. 01st"]
[null," (MM/YYYY) in equivalent  Indian Rupees is "]
["Crore. The details of value used for working out the Balance Bid Capacity as above, are as follows:"]
["A. Maximum value of Transmission & Distribution (T&D) works (including substation, transmission lines, distribution for all verticals), executed in any one financial year during the last 5 financial years taking into account the completed as well as the works in progress "]
["S N","FY","Value of Total Sales (including Taxes and Duties)(T)"]
[]
[]
[]
[]
[]
["B. Value of existing commitments and ongoing similar works yet to be completed as on the 1st date of quarter of the financial year in which the bids are opened(B) as on 1st date of the Quarter in which First Envelope Bids are to be opened"]
["S N","Value of Balance Works (B1) against the Contracts awarded by Employer","Value of Balance Works (B2) against the Contracts awarded by Utilities other than Employer ",null,"Total value of Balance Works (B){B=B1+B2}"]
[]
["[**1st day of the quarter in which the first envelope bids are opened  for e.g. If the actual date of opening of first envelope bids is 15th June 2016, the Balance bid capacity as on 01st April 2016 is to be declared)]\n"]
["6. Notwithstanding above, we also understand that the Bid Capacity as declared hereinabove, shall be subject to assessment, if any, by the Employer, which  shall be final and binding. We also confirm that the Employer may verify the supporting documents/ details in connection with above declarations. We further understand that in case of any unethical practices inter-alia including any misrepresentation of facts, submission of false and/or forged details/ documents/ declaration by us, we may be debarred from the participation in Employer’s tenders in future as considered appropriate by Employer and our Bid Security/ Contract Performance Guarantee shall be forfeited besides taking other actions as deemed appropriate."]
[]
["Date      :",{"$f":"'Attach 3(JV)'!B24","v":""},null,"Printed Name :",{"$f":"'Attach 3(JV)'!E24","v":""}]
["Place      :",{"$f":"'Attach 3(JV)'!B25","v":""},null,"Designation :",{"$f":"'Attach 3(JV)'!E25","v":""}]
[]
["Note: Key Managerial Personnel (KMP) of the company shall include CEO/Managing Director/ Company Secretary/ Director/ CFO/any of the partner in case of partnership firm/any other officer entrusted with substantial powers of the management of the affairs of the company/firm."]
["Bidders are advised to print this declaration on the Company Letter Head and upload the duly signed and scanned copy along with the First Envelope Bid. "]

{"sheet":"Attach 23","index":26,"n_rows":27,"n_cols":5,"rows_kept":27,"cut":false,"hidden":true,"merged":[[19,0,19,4],[20,0,20,4],[2,0,2,4],[3,0,3,4],[6,0,6,3],[7,1,7,3],[8,1,8,3],[9,1,9,3],[10,1,10,3],[15,0,15,4],[16,0,16,4],[17,0,17,4],[18,0,18,4]]}
[{"$f":"Basic!A3&Basic!B3","v":"Specification No. :CC/NT/W-GIS/DOM/A06/23/03905"},null,null,null,{"$f":"\"Attachment-25 \"","v":"Attachment-25 "}]
[]
[{"$f":"'Attach 3(JV)'!A3","v":"400kV GIS Substation Extension Package SS-112 for  (i) Extension of 765/400kV Navsari (New) GIS Substation under ICT Augmentation at Navsari (New) associated with integration of additional 7 GW RE power from Khavda RE park under Phase-III, (ii) Extension of 400/220kV Mysore Substation under Augmentation of transformation capacity by 1x500 MVA, 400/220kV ICT (4th) at Mysore S/S, (iii) Extension of 400kV Indore Substation under Scheme to control fault level at 400kV Indore Substation and (iv) Extension of 400kV Jeypore (POWERGRID) Substation under Transmission scheme for Inter-regional ER-WR interconnection scheme."}]
["(Compliance to the process related to the e-RA Terms & Conditions and the Business Rules governing the e-RA)"]
[]
[{"$f":"'Attach 3(JV)'!A7","v":"Bidder’s Name and Address :"},null,null,null,{"$f":"'Attach 3(JV)'!E7","v":"To:"}]
[{"$f":"'Attach 3(JV)'!A8","v":""},null,null,null,{"$f":"'Attach 3(JV)'!E8","v":"Contract Services"}]
["Name        :",{"$f":"'Attach 3(JV)'!B9","v":""},null,null,{"$f":"'Attach 3(JV)'!E9","v":"Power Grid Corporation of India Ltd.,"}]
["Address    :",{"$f":"'Attach 3(JV)'!B10","v":""},null,null,{"$f":"'Attach 3(JV)'!E10","v":"\"Saudamini\", Plot No. 2, Sector 29"}]
[null,{"$f":"'Attach 3(JV)'!B11","v":""},null,null,{"$f":"'Attach 3(JV)'!E11","v":"Gurgaon (Haryana) - 122001"}]
[null,{"$f":"'Attach 3(JV)'!B12","v":""}]
[]
[]
["Dear Sir,"]
[]
["We confirm that:"]
["1)\tThe undersigned is authorized representative of the Bidder."]
["2)\tWe have studied the e-Reverse Auction Terms & Conditions and the Business Rules governing the e-Reverse Auction as mentioned in your letter and confirm our agreement to them.\t"]
["3)\tWe understand that ASP shall arrange to demonstrate/ train (if not trained earlier) bidders’ nominated person(s), without any cost. They will also explain all the Rules related to e-Reverse Auction/ Business Rules Document to be adopted along with bid manual. We have further noticed that we at own discretion may ask for additional training to use the e-RA platform well in advance before start of the e-RA event by contacting the ASP at any suitable time. All such additional trainings shall also be free of cost."]
["4)\tWe further re-confirm that within an hour of conclusion of e-Reverse Auction, we will submit confirmation of our final offered price in e-Reverse Auction including the break-up under individual head of the template [i.e. CIF/Ex-works Price, Port handling & Custom clearance, Local Transportation, In-transit Insurance, loading and unloading, Installation Charges, Type Test Charges, Training Charges, Customs Duty, GST for supply of Goods and Installation Services etc., as applicable] Further, unless other-wise stated in the above break-up, decrease in the price of individual head of the template shall be considered proportionately on all individual line items of the respective head of the price schedules. In case, there is any variation between our final price quoted in Reverse Auction and the signed document submitted by us after Auction, the first i.e.  Closing Price in Auction, shall be taken as final offered price by us. We also confirm that we will not increase unit rate of any item submitted in our original bid."]
["We hereby confirm that we will honor the Bids placed by us during the auction process. \t"]
[]
[]
[]
[]
["Date      :",{"$f":"'Attach 3(JV)'!B24","v":""},null,"Printed Name :",{"$f":"'Attach 3(JV)'!E24","v":""}]
["Place      :",{"$f":"'Attach 3(JV)'!B25","v":""},null,"Designation :",{"$f":"'Attach 3(JV)'!E25","v":""}]

{"sheet":"Bid Form 1st Envelope ","index":27,"n_rows":123,"n_cols":38,"rows_kept":123,"cut":false,"hidden":false,"merged":[[65,1,65,5],[54,3,54,5],[57,1,57,5],[91,3,91,4],[105,0,105,5],[85,1,85,5],[92,3,92,4],[66,1,66,5],[59,1,59,5],[62,1,62,5],[63,1,63,5],[86,1,86,5],[60,1,60,5],[61,1,61,5],[58,1,58,5],[56,1,56,4],[91,1,91,2],[64,1,64,5],[67,1,67,5],[80,2,80,3],[81,1,81,5],[82,1,82,5],[55,3,55,5],[84,1,84,5],[88,1,88,2],[88,3,88,4],[89,1,89,2],[89,3,89,4],[90,1,90,2],[83,1,83,5],[122,0,122,5],[116,0,116,2],[116,3,116,5],[117,0,117,2],[117,3,117,5],[119,0,119,2],[119,3,119,5],[118,3,118,5],[120,0,120,2],[120,3,120,5],[94,1,94,5],[87,1,87,5],[46,3,46,5],[47,3,47,5],[53,3,53,5],[45,3,45,5],[28,3,28,5],[37,3,37,5],[42,3,42,5],[118,0,118,2],[93,1,93,5],[101,4,101,5],[102,4,102,5],[106,0,106,1],[108,1,108,2],[92,1,92,2],[112,3,112,5],[113,0,113,2],[109,1,109,2],[113,3,113,5],[114,0,114,2],[112,0,112,2],[114,3,114,5],[115,0,115,2],[115,3,115,5],[90,3,90,4],[24,6,24,9],[38,3,38,5],[39,3,39,5],[29,3,29,5],[30,3,30,5],[25,3,25,5],[24,3,24,5],[52,3,52,5],[48,3,48,5],[49,3,49,5],[35,3,35,5],[44,3,44,5],[43,3,43,5],[50,3,50,5],[51,3,51,5],[40,3,40,5],[41,3,41,5],[36,3,36,5],[26,3,26,5],[27,3,27,5],[32,3,32,5],[33,3,33,5],[34,3,34,5],[31,3,31,5],[15,6,15,7],[21,3,21,5],[17,1,17,5],[18,1,18,5],[16,1,16,5],[23,6,23,9],[2,0,2,5],[4,2,4,5],[5,1,5,2],[14,2,14,5],[20,1,20,5],[22,3,22,5],[23,3,23,5]]}
[{"$f":"Basic!A3&Basic!B3","v":"Specification No. :CC/NT/W-GIS/DOM/A06/23/03905"},null,null,null,null,"Bid Form 1st Envelope ",null,null,null,null,null,null,null,null,null,null,null,null,null,null,null,null,null,null,null,null,null,null,null,null,1,"one",1,"st",null,null,1,"January"]
[null,null,null,null,null,null,null,null,null,null,null,null,null,null,null,null,null,null,null,null,null,null,null,null,null,null,null,null,null,null,2,"two",2,"nd",null,null,2,"February"]
["BID FORM (First Envelope)",null,null,null,null,null,null,null,null,null,null,null,null,null,null,null,null,null,null,null,null,null,null,null,null,null,null,null,null,null,3,"three",3,"rd",null,null,3,"March"]
[null,null,null,null,null,null,null,null,null,null,null,null,null,null,null,null,null,null,null,null,null,null,null,null,null,null,null,null,null,null,4,"four",4,"th",null,null,4,"April"]
["Bid Proposal Ref. No.",null,null,null,null,null,null,null,null,null,null,null,null,null,null,null,null,null,null,null,null,null,null,null,null,null,null,null,null,null,5,"five",5,"th",null,null,5,"May"]
["Date      :",{"$f":"'Attach 3(JV)'!B24","v":""},null,null,null,null,null,null,null,null,null,null,null,null,null,null,null,null,null,null,null,null,null,null,null,null,null,null,null,null,6,"six",6,"th",{"$f":"DAY(B6)","v":{"$error":"#VALUE!"}},null,6,"June"]
[null,null,null,null,null,null,null,null,null,null,null,null,null,null,null,null,null,null,null,null,null,null,null,null,null,null,null,null,null,null,7,"seven",7,"th",{"$f":"MONTH(B6)","v":{"$error":"#VALUE!"}},null,7,"July"]
[{"$f":"'Attach 3(JV)'!E7","v":"To:"},null,null,null,null,null,null,null,null,null,null,null,null,null,null,null,null,null,null,null,null,null,null,null,null,null,null,null,null,null,8,"eight",8,"th",{"$f":"LOOKUP(AI7,AK1:AK12,AL1:AL12)","v":{"$error":"#VALUE!"}},null,8,"August"]
[{"$f":"'Attach 3(JV)'!E8","v":"Contract Services"},null,null,null,null,null,null,null,null,null,null,null,null,null,null,null,null,null,null,null,null,null,null,null,null,null,null,null,null,null,9,"nine",9,"th",{"$f":"YEAR(B6)","v":{"$error":"#VALUE!"}},null,9,"September"]
[{"$f":"'Attach 3(JV)'!E9","v":"Power Grid Corporation of India Ltd.,"},null,null,null,null,null,null,null,null,null,null,null,null,null,null,null,null,null,null,null,null,null,null,null,null,null,null,null,null,null,10,"ten",10,"th",null,null,10,"October"]
[{"$f":"'Attach 3(JV)'!E10","v":"\"Saudamini\", Plot No. 2, Sector 29"},null,null,null,null,null,null,null,null,null,null,null,null,null,null,null,null,null,null,null,null,null,null,null,null,null,null,null,null,null,11,"eleven",11,"th",null,null,11,"November"]
[{"$f":"'Attach 3(JV)'!E11","v":"Gurgaon (Haryana) - 122001"},null,null,null,null,null,null,null,null,null,null,null,null,null,null,null,null,null,null,null,null,null,null,null,null,null,null,null,null,null,12,"twelve",12,"th",null,null,12,"December"]
[null,null,null,null,null,null,null,null,null,null,null,null,null,null,null,null,null,null,null,null,null,null,null,null,null,null,null,null,null,null,13,"thirteen",13,"th"]
[null,null,null,null,null,null,null,null,null,null,null,null,null,null,null,null,null,null,null,null,null,null,null,null,null,null,null,null,null,null,14,"fourteen",14,"th"]
["Name of Contract  :",null,{"$f":"Basic!B1","v":"400kV GIS Substation Extension Package SS-112 for  (i) Extension of 765/400kV Navsari (New) GIS Substation under ICT Augmentation at Navsari (New) associated with integration of additional 7 GW RE power from Khavda RE park under Phase-III, (ii) Extension of 400/220kV Mysore Substation under Augmentation of transformation capacity by 1x500 MVA, 400/220kV ICT (4th) at Mysore S/S, (iii) Extension of 400kV Indore Substation under Scheme to control fault level at 400kV Indore Substation and (iv) Extension of 400kV Jeypore (POWERGRID) Substation under Transmission scheme for Inter-regional ER-WR interconnection scheme."},null,null,null,null,null,null,null,null,null,null,null,null,null,null,null,null,null,null,null,null,null,null,null,null,null,null,null,15,"fifteen",15,"th"]
["Dear Ladies and/or Gentlemen,",null,null,null,null,null,"Enter details here.",null,null,null,null,null,null,null,null,{"$f":"'Names of Bidder'!I4","v":0},null,null,null,null,null,null,null,null,null,null,null,null,null,null,16,"sixteen",16,"th"]
[1,{"$f":"\"Having examined the Bidding Documents, including Amendment Nos. \" & G17 & \" dated \"& TEXT(H17, \"dd/mm/yyyy\") & AB17","v":"Having examined the Bidding Documents, including Amendment Nos. ...[Enter the Amendment]… dated …[Enter the Date in dd-mm-yyyy]… the receipt of which is hereby acknowledged, we the undersigned, offer to design, manufacture, test, deliver, install and commission (including carrying out Trial operation, Performance & Guarantee Test as per the provision of Technical Specification) the Facilities under the above-named package in full conformity with the said Bidding Documents. In accordance with ITB Clause 9.1 of the Bidding Documents, as per which the bid shall be submitted by the bidder under “Single Stage - Two Envelope” procedure of bidding. Accordingly, we hereby submit our Bid, in two envelopes i.e. First Envelope – Techno – Commercial Part & Second Envelope - Price Part (to be opened subsequently). "},null,null,null,null,"...[Enter the Amendment]…","…[Enter the Date in dd-mm-yyyy]…",null,null,null,null,null,null,null,null,null,null,null,null,null,null,null,null,null,null,null," the receipt of which is hereby acknowledged, we the undersigned, offer to design, manufacture, test, deliver, install and commission (including carrying out Trial operation, Performance & Guarantee Test as per the provision of Technical Specification) the Facilities under the above-named package in full conformity with the said Bidding Documents. In accordance with ITB Clause 9.1 of the Bidding Documents, as per which the bid shall be submitted by the bidder under “Single Stage - Two Envelope” procedure of bidding. Accordingly, we hereby submit our Bid, in two envelopes i.e. First Envelope – Techno – Commercial Part & Second Envelope - Price Part (to be opened subsequently). ",null,null,17,"seventeen",17,"th"]
[null,"The above amounts are in accordance with the price schedules attached herewith and are made part of this bid"]
[1.1000000000000001,"We meet the eligibility requirements and have no conflict of interest in accordance with ITB Clause 2 "]
[2,"Attachments to the Bid Form (First Envelope)",null,null,null,null,null,null,null,null,null,null,null,null,null,null,null,null,null,null,null,null,null,null,null,null,null,null,"Bank Draft",null,18,"eighteen",18,"th"]
[null,"In line with the requirement of the Bidding Documents, we enclose herewith the following Attachments:",null,null,null,null,null,null,null,null,null,null,null,null,null,null,null,null,null,null,null,null,null,null,null,null,null,null,"Pay Order",null,19,"nineteen",19,"th"]
[null,null,null,{"$f":"\"Bid Security, in a separate envelope, in the form of \"&G22&\" for a sum of \"&H22&\" \"&I22&\" (\"&'N to W'!A4&\") \"&\" initially valid upto \"&J22&\"/\"&K22&\"/\"&L22&\" in accordance with ITB clause 13.2.\"","v":"Bid Security, in a separate envelope, in the form of Bank Guarantee for a sum of INR  (Rs. Zero Only )  initially valid upto // in accordance with ITB clause 13.2."},null,null,"Bank Guarantee","INR",null,null,null,null,null,null,null,null,null,null,null,null,null,null,null,null,null,null,null,null,"Banks certified Cheque",{"$f":"IF(ISERROR(LOOKUP(J22,AE1:AE22,AF1:AF22)), \"Zero\", LOOKUP(J22,AE1:AE22,AF1:AF22))","v":"Zero"},20,"twenty",20,"th"]
[null,{"$f":"\"(a) Attachment 1(\" & Basic!$B$2 & \") :\"","v":"(a) Attachment 1(SS112) :"},null,"Not Applicable"]
[]
[null,{"$f":"\"(b) Attachment 2(\" & Basic!$B$2 & \") :\"","v":"(b) Attachment 2(SS112) :"},null,"A power of attorney duly authorized by a Notary Public indicating that the person(s) signing the bid have the authority to sign the bid and thus that the bid is binding upon us during the full period of its validity in accordance with the ITB Clause 14.",null,null,null,null,null,null,null,null,null,null,null,null,null,null,null,null,null,null,null,null,null,null,null,null,"Bank Guarantee",{"$f":"IF(J22 > 9, \"(\"&J22&\")\", \"(0\"&J22&\")\")","v":"(0)"},null,null,21,"st"]
[null,{"$f":"\"(c) Attachment 3(\" & Basic!$B$2 & \") :\"","v":"(c) Attachment 3(SS112) :"},null,"The documentary evidence that we are eligible to bid in accordance with ITB Clause 2. Further, in terms of ITB Clause 9.3 (c) & (e), the qualification data has been furnished as per your format enclosed with the bidding documents Attachment-3(QR). ",null,null,null,null,null,null,null,null,null,null,null,null,null,null,null,null,null,null,null,null,null,null,null,null,null,null,null,null,22,"th"]
[null,null,null,"Further, the required Joint Venture Agreement signed by us and our Partners has also been furnished as per your format Attachment-3(JV).",null,null,null,{"$f":"'Names of Bidder'!D9","v":"SOLE BIDDER"},null,null,null,null,null,null,null,null,null,null,null,null,null,null,null,null,null,null,null,null,"Applicable",null,null,null,23,"th"]
[null,null,null,"Further the required deed of Joint Undertaking signed by us and Tower Manufacturer has also been furnished as per your format.",null,null,0,{"$f":"'Names of Bidder'!D10","v":1},null,null,null,null,null,null,null,null,null,null,null,null,null,null,null,null,null,null,null,null,"Not Applicable",null,null,null,24,"th"]
[null,{"$f":"\"(d) Attachment 4(\" & Basic!$B$2 & \") :\"","v":"(d) Attachment 4(SS112) :"},null,"The documentary evidence establishing in accordance with ITB Clause 3, Vol.-I of the Bidding Documents that the facilities offered by us are eligible facilities and conform to the Bidding Documents has been furnished as Attachment 4. A list of Special Tools & Tackles to be used by us for erection, testing & Commissioning and to be handed over to Employer, the cost of which is included is our Bid Price, is also enclosed as per your format as Attachment 4A. A list of Special Tools & Tackles to be brought by the contractor for erection, testing & Commissioning and to be taken back after completion of work, whose cost in not included in our bid price, is enclosed as per your format as Attachment 4B.",null,null,null,null,null,null,null,null,null,null,null,null,null,null,null,null,null,null,null,null,null,null,null,null,null,null,null,null,25,"th"]
[null,{"$f":"\"(e) Attachment 5(\" & Basic!$B$2 & \") :\"","v":"(e) Attachment 5(SS112) :"},null,"The details of all major items of services or supply which we propose subletting in case of award, giving details of the name and nationality of the proposed subcontractor/sub-vendor for each item.",null,null,null,null,null,null,null,null,null,null,null,null,null,null,null,null,null,null,null,null,null,null,null,null,null,null,null,null,26,"th"]
[null,{"$f":"\"(f) Attachment 5A(\" & Basic!$B$2 & \") :\"","v":"(f) Attachment 5A(SS112) :"},null,"(Items, Components, Raw Material, Services proposed to be sourced from Micro and Small Enterprises): The details of the items, components, raw material, services which is proposed to bought/availed from Micro and Small Enterprises for the purpose of completion of works",null,null,null,null,null,null,null,null,null,null,null,null,null,null,null,null,null,null,null,null,null,null,null,null,null,null,null,null,27,"th"]
[]
[null,{"$f":"\"(g) Attachment 6(\" & Basic!$B$2 & \") :\"","v":"(g) Attachment 6(SS112) :"},null,"The variation and deviations from the requirements of the Conditions of Contract, Technical Specification and Drawings (excluding critical provisions as mentioned at clause 6.0 below) in your format enclosed with the Bidding Documents, including, inter alia, the cost of withdrawal of the variations and deviations indicated therein.",null,null,null,null,null,null,null,null,null,null,null,null,null,null,null,null,null,null,null,null,null,null,null,null,null,null,null,null,28,"th"]
[null,{"$f":"\"(h) Attachment 7(\" & Basic!$B$2 & \") :\"","v":"(h) Attachment 7(SS112) :"},null,"The details of Alternative Bids made by us indicating the complete Technical Specifications and the deviation to contractual and commercial conditions. (Not Applicable)",null,null,null,null,null,null,null,null,null,null,null,null,null,null,null,null,null,null,null,null,null,null,null,null,null,null,null,null,29,"th"]
[null,{"$f":"\"(i) Attachment 8(\" & Basic!$B$2 & \") :\"","v":"(i) Attachment 8(SS112) :"},null,"Manufacturer’s Authorisation Forms.",null,null,null,null,null,null,null,null,null,null,null,null,null,null,null,null,null,null,null,null,null,null,null,null,null,null,null,null,30,"th"]
[null,{"$f":"\"(j) Attachment 9(\" & Basic!$B$2 & \") :\"","v":"(j) Attachment 9(SS112) :"},null,"Work Completion Schedule.",null,null,null,null,null,null,null,null,null,null,null,null,null,null,null,null,null,null,null,null,null,null,null,null,null,null,null,null,31,"st"]
[null,{"$f":"\"(k) Attachment 10(\" & Basic!$B$2 & \") :\"","v":"(k) Attachment 10(SS112) :"},null,"Guarantee Declaration."]
[null,{"$f":"\"(l) Attachment 11(\" & Basic!$B$2 & \") :\"","v":"(l) Attachment 11(SS112) :"},null,"Information regarding ex-employees of Employer in our firm."]
[null,{"$f":"\"(m) Attachment 12(\" & Basic!$B$2 & \") :\"","v":"(m) Attachment 12(SS112) :"},null,"Filled up information regarding Price Adjustment Data as per the format enclosed in the bidding documents."]
[null,{"$f":"\"(n) Attachment 13(\" & Basic!$B$2 & \") :\"","v":"(n) Attachment 13(SS112) :"},null," Declaration regarding Social Accountability."]
[null,{"$f":"\"(o) Attachment 14(\" & Basic!$B$2 & \") :\"","v":"(o) Attachment 14(SS112) :"},null,"Integrity Pact, in a separate envelope, duly signed on each page by the person signing the bid."]
[null,{"$f":"\"(p) Attachment 15(\" & Basic!$B$2 & \") :\"","v":"(p) Attachment 15(SS112) :"},null,"Option for Interest Bearing Advance(s) (Initial Advance and/or Engineering Advance) and Information for E-payment, PF details and declaration regarding Micro/Small & Medium Enterprises"]
[null,{"$f":"\"(q) Attachment 16(\" & Basic!$B$2 & \") :\"","v":"(q) Attachment 16(SS112) :"},null,"Additional Information."]
[null,{"$f":"\"(r) Attachment 17(\" & Basic!$B$2 & \") :\"","v":"(r) Attachment 17(SS112) :"},null,"Declaration for tax exemptions, reductions, allowances or benefits"]
[null,{"$f":"\"(s) Attachment 18(\" & Basic!$B$2 & \") :\"","v":"(s) Attachment 18(SS112) :"},null,"Safety Pact"]
[null,{"$f":"\"(t) Attachment 19 (\" & Basic!$B$2 & \") :\"","v":"(t) Attachment 19 (SS112) :"},null,"Declaration."]
[null,{"$f":"\"(u) Attachment 20 (\" & Basic!$B$2 & \") :\"","v":"(u) Attachment 20 (SS112) :"},null,"Declaration of Key Managerial Person jointly with Power of Attorney holder"]
[null,{"$f":"\"(v) Attachment 21 (\" & Basic!$B$2 & \") :\"","v":"(v) Attachment 21 (SS112) :"},null,"Affidavit of Self certification regarding Minimum Local Content in line with PPP-MII order, if applicable "]
[null,{"$f":"\"(w) Attachment 22 (\" & Basic!$B$2 & \") :\"","v":"(w) Attachment 22 (SS112) :"},null,"Certificate from statutory auditor or cost auditor of the company (in the case of companies) or from a practicing cost accountant or practicing chartered accountant (in respect of suppliers other than companies) giving the percentage of Local Content, in line with PPP-MII order, if applicable "]
[null,{"$f":"\"(x) Attachment 23 (\" & Basic!$B$2 & \") :\"","v":"(x) Attachment 23 (SS112) :"},null,"Compliance to the process related to the    e-RA Terms & Conditions and the Business Rules governing the e-RA."]
[null,{"$f":"\"(y) Attachment 24 (\" & Basic!$B$2 & \") :\"","v":"(y) Attachment 24 (SS112) :"},null,"Confirmation in regard to Type Test (to be furnished in case bidder is proposing to qualify through Note-4 under Route-1 of QR)."]
[null,{"$f":"\"(z) Attachment 25 (\" & Basic!$B$2 & \") :\"","v":"(z) Attachment 25 (SS112) :"},null,"Declaration by the Bidder regarding events encountered pursuant to ITB Clause 2.1"]
[null,{"$f":"\"(aa) Attachment 26 (\" & Basic!$B$2 & \") :\"","v":"(aa) Attachment 26 (SS112) :"},null,"Authorization certificate issued by Domestic Manufacturer for selling Domestically Manufactured  Iron & Steel Products "]
[null,{"$f":"\"(bb) Attachment 27 (\" & Basic!$B$2 & \") :\"","v":"(bb) Attachment 27 (SS112) :"},null,"Affidavit of Self certification regarding Domestic Value Addition in Iron & Steel Products "]
[null,{"$f":"\"(cc) Attachment 28 (\" & Basic!$B$2 & \") :\"","v":"(cc) Attachment 28 (SS112) :"},null,"Certification by the Bidder as per DoE Order in line with ITB Clause 2.1"]
[null,{"$f":"\"(dd) Attachment 29 (\" & Basic!$B$2 & \") :\"","v":"(dd) Attachment 29 (SS112) :"},null,"Bid Securing Declaration"]
[2.2000000000000002,"We are a Micro and Small Enterprise (MSE) registered with "]
[null,"a designated Authority of GoI under the Public Procurement Policy for MSEs order 2012, Notification dated 01/06/2020 and 26/06/2020 including subsequent amendments, read in conjunction with related notifications issued from time to time for such enterprises. (applicable for MSE only) "]
[3,"We are aware that, in line with Clause No. 27.1 (ITB), our Second Envelope (Price Part) is liable to be rejected in case the same contains any deviation/omission from the contractual and commercial conditions and technical Specifications other than those identified in this First Envelope."]
[3.1,"We are aware that the Price Schedules do not generally give a full description of the Work to be performed under each item and we shall be deemed to have read the Technical Specifications and other sections of the Bidding Documents and Drawings to ascertain the full scope of Work included in each item while filling-in the rates and prices in Second Envelope. "]
[3.2,"We declare that as specified in Clause 11.5, Section –II:ITB, Vol.-I of the Bidding Documents, prices quoted by us in the Price Schedules in Second Envelope shall be subject to Price Adjustment during the execution of Contract in accordance with Appendix-2 (Price Adjustment) to the Contract Agreement. "]
[4,"We confirm that except as otherwise specifically provided our Bid Prices in Second Envelope include all taxes, duties, levies and charges as may be assessed on us, our Sub-Contractor/Sub-Vendor or their employees by all municipal, state or national government authorities in connection with the Facilities, in and outside of India."]
[4.0999999999999996,"100% of applicable Taxes and Duties i.e. GST which are payable by the Employer under the Contract, shall be reimbursed by the Employer on production of satisfactory documentary evidence by the Contractor in accordance with the provisions of the Bidding Documents."]
[4.2,"We further understand that notwithstanding 4.0 above, in case of award on us, you shall also bear and pay/reimburse to us,  GST  in respect of supplies  by us to you, imposed on the Plant & Equipment including Mandatory Spare Parts to be incorporated into the Facilities including Type Test charges for Type test to be conducted  specified in Schedule No. 1,   Installation Services specified in Schedule No. 3 and  Charges for Training to be imparted specified in Schedule No. 4 of the Price Schedule in Second Envelope, by the Indian Laws."]
[4.3,"We confirm that we have also registered/we shall also get registered in the GST Network with a GSTIN, in all the states where the project is located and the states from which we shall make our supply of goods"]
[5,"Construction of the Contract"]
[5.0999999999999996,"We declare that we have studied Clause GCC 2.1 relating to mode of contracting for Domestic Bidders and we are making this proposal with a stipulation that you shall award us two separate Contracts viz ‘First Contract’ for ex-works supply of all equipment and materials including mandatory spares and  ‘Second Contract’ for providing all the services i.e. inland transportation for delivery at site, insurance, unloading, storage, handling at site, installation, testing and commissioning including Trial operation in respect of all the equipment supplied under the ‘First Contract’ and other services specified in the Contract   Documents. \n\nWe declare that the award of two contracts, will not, in any way, dilute our responsibility for successful operation of plant/equipment and fulfillment of all obligations as per Bidding Documents and that both the Contracts will have a cross-fall breach clause i.e. a breach in one Contract will automatically be classified as a breach of the other contract which will confer on you the right to terminate the other contract at our risk and cost."]
[6,"We have read the provisions of following clauses and confirm that the specified stipulations of these clauses are acceptable to us:"]
[null,"(a)","GCC 2.14",null,"Governing Law"]
[null,"(b)","GCC 5.7",null,"Contractors Responsibility"]
[null,"(c) ","GCC 8",null,"Terms of Payment"]
[null,"(d)","GCC 9.3 ",null,"Performance Security"]
[null,"(e)","GCC 10",null,"Taxes and Duties"]
[null,"(f)","GCC 21.2",null,"Completion Time Guarantee"]
[null,"(g)","GCC 22",null,"Defect Liability"]
[null,"(h)","GCC 23",null,"Functional Guarantee"]
[null,"(i)","GCC 25",null,"Patent Indemnity"]
[null,"(j)","GCC 26",null,"Limitation of Liability"]
[null,"(k)","GCC 38",null,"Settlement of Disputes"]
[null,"(l)","GCC 39",null,"Arbitration"]
[null,"(m)","Appendix 2 to Form of Contract Agreement",null,"Price Adjustment"]
[null,"Further we understand that deviation taken in any of the above clauses by us may make our bid non-responsive as per provision of bidding documents and be rejected by you."]
[7,"We undertake, if our bid is accepted, to commence the work immediately upon your Notification of Award to us, and to achieve the delivery of goods and related services within the time stated in the Bidding Documents."]
[8,"If our bid is accepted, we undertake to provide a Performance Security in the form and amounts, and within the times specified in the Bidding Documents."]
[9,"We agree to abide by this bid for a period of six (06) months from the date fixed for opening of bids as stipulated in the Bidding Documents, and it shall remain binding upon us and may be accepted by you at any time before the expiration of that period. "]
[10,"Until a formal Contract is prepared and executed between us, this bid, together with your written acceptance thereof in the form of your Notification of Award shall constitute a binding contract between us."]
[11,"We understand that you are not bound to accept the lowest or any bid you may receive."]
[12,"Commissions or gratuities, if any, paid or to be paid by us to agents relating to this Bid, and to contract execution, if we are awarded the contract, are  listed below:- "]
[null,"Name and Address of Agent",null,"Amount and Currency",null,"Purpose of Commission or Gratuity"]
[]
[]
[]
[null,"(If none, state “none”)"]
[13,"# (For Joint Venture only) We, the partners of Joint Venture submitting this bid, do agree and confirm that in case of Award of Contract on the Joint Venture, we shall be jointly and severally liable and responsible for the execution of the Contract in accordance with Contract terms and conditions."]
[14,"We, hereby, declare that only the persons or firms interested in this proposal as principals are named here and that no other persons or firms other than those mentioned herein have any interest in this proposal or in the Contract to be entered into, if the award is made on us, that this proposal is made without any connection with any other person, firm or party likewise submitting a proposal is in all respects for and in good faith, without collusion or fraud. "]
[null,{"$f":"IF(ISERROR(\"Dated this \" & AI6 & LOOKUP(AI6,AG1:AG36,AH1:AH36) & \" day of \" & AI8 & \" \" &AI9), \"\", \"Dated this \" & AI6 & LOOKUP(AI6,AG1:AG36,AH1:AH36) & \" day of \" & AI8 & \" \" &AI9)","v":""}]
[null,"Thanking you, we remain,"]
[]
[null,null,null,null,null,"Yours faithfully,"]
[null,null,null,null,null,{"$f":"\"For and on behalf of \" & 'Attach 3(JV)'!B9","v":"For and on behalf of "}]
[]
["Date      :",null,{"$f":"'Attach 3(JV)'!B24","v":""},"Printed Name :",{"$f":"'Attach 3(JV)'!E24","v":""}]
["Place      :",null,{"$f":"'Attach 3(JV)'!B25","v":""},"Designation :",{"$f":"'Attach 3(JV)'!E25","v":""}]
[]
[]
["In case of bid from a Joint Venture, name & designation of representative of JV partner is to be provided and Bid Form is also to be signed by him"]
[{"$f":"IF(AND(H27=\"JV (Joint Venture)\",H28=1), \"\", \"Other Partner -1\")","v":"Other Partner -1"},null,null,null,null,{"$f":"IF(AND(H27=\"JV (Joint Venture)\",H28=1), \"Other Partner\", \"Other Partner -2\")","v":"Other Partner -2"},null,{"$f":"IF(AND(H27=\"JV (Joint Venture)\",H28=1), 1,2)","v":2}]
[]
[{"$f":"IF(AND(H27=\"JV (Joint Venture)\",H28=1), \"\", \"Printed Name :\")","v":"Printed Name :"},null,null,null,"Printed Name :"]
[{"$f":"IF(AND(H27=\"JV (Joint Venture)\",H28=1), \"\", \"Designation :\")","v":"Designation :"},null,null,null,"Designation :"]
[]
["Please provide additional information of the Bidder"]
["Business Address                       :"]
[]
[]
["Country of Incorporation         :"]
["State/Province to be indicated :"]
["Name of Principal Officer         :"]
["Address of  Principal Officer    :"]
[]
[null,null,null,null,null,null,null,"Note: Bidders may note that no prescribed proforma has been enclosed for ",{"$f":"\"Attachment 2(\" & Basic!$B$2 & \") \"","v":"Attachment 2(SS112) "},"Power of Attorney. Bidders may use their own proforma for furnishing the required information with the bid."]
[]
[{"$f":"H121&I121&J121","v":"Note: Bidders may note that no prescribed proforma has been enclosed for Attachment 2(SS112) Power of Attorney. Bidders may use their own proforma for furnishing the required information with the bid."}]

{"sheet":"N to W","index":28,"n_rows":112,"n_cols":4,"rows_kept":112,"cut":false,"hidden":true,"merged":[[0,0,0,1]]}
[{"$f":"'Bid Form 1st Envelope '!I22","v":0}]
[]
[]
[{"$f":"IF(OR((A1>9999999999),(A1<0)),\"Invalid Entry - More than 1000 crore OR -ve value\",IF(A1=0, \"Rs. Zero Only \",+CONCATENATE(\"Rs. \", B11,D11,B10,D10,B9,D9,B8,D8,B7,D7,B6,\" Only\")))","v":"Rs. Zero Only "}]
[]
[{"$f":"-INT(A1/100)*100+ROUND(A1,0)","v":0},{"$f":"IF(A6=0,\"\",LOOKUP(A6,$A$13:$A$112,$B$13:$B$112))","v":""}]
[{"$f":"-INT(A1/1000)*10+INT(A1/100)","v":0},"",null,{"$f":"+IF(B7=\"\",\"\",\" Hundred \")","v":""}]
[{"$f":"-INT(A1/100000)*100+INT(A1/1000)","v":0},"",null,{"$f":"IF((B8=\"\"),IF(C8=\"\",\"\",\" Thousand \"),\" Thousand \")","v":""}]
[{"$f":"-INT(A1/10000000)*100+INT(A1/100000)","v":0},"",null,{"$f":"IF((B9=\"\"),IF(C9=\"\",\"\",\" Lac \"),\" Lac \")","v":""}]
[{"$f":"-INT(A1/1000000000)*100+INT(A1/10000000)","v":0},"",null,{"$f":"IF((B10=\"\"),IF(C10=\"\",\"\",\" Crore \"),\" Crore \")","v":""}]
[{"$f":"-INT(A1/10000000000)*1000+INT(A1/1000000000)","v":0},"",null,{"$f":"IF((B11=\"\"),IF(C11=\"\",\"\",\" Hundred \"),\" Hundred \")","v":""}]
[]
[1,"One"]
[2,"Two"]
[3,"Three"]
[4,"Four"]
[5,"Five"]
[6,"Six"]
[7,"Seven"]
[8,"Eight"]
[9,"Nine"]
[10,"Ten"]
[11,"Eleven"]
[12,"Twelve"]
[13,"Thirteen"]
[14,"Fourteen"]
[15,"Fifteen"]
[16,"Sixteen"]
[17,"Seventeen"]
[18,"Eighteen"]
[19,"Nineteen"]
[20,"Twenty"]
[21,"Twenty One"]
[22,"Twenty Two"]
[23,"Twenty Three"]
[24,"Twenty Four"]
[25,"Twenty Five"]
[26,"Twenty Six"]
[27,"Twenty Seven"]
[28,"Twenty Eight"]
[29,"Twenty Nine"]
[30,"Thirty"]
[31,"Thirty One"]
[32,"Thirty Two"]
[33,"Thirty Three"]
[34,"Thirty Four"]
[35,"Thirty Five"]
[36,"Thirty Six"]
[37,"Thirty Seven"]
[38,"Thirty Eight"]
[39,"Thirty Nine"]
[40,"Forty"]
[41,"Forty One"]
[42,"Forty Two"]
[43,"Forty Three"]
[44,"Forty Four"]
[45,"Forty Five"]
[46,"Forty Six"]
[47,"Forty Seven"]
[48,"Forty Eight"]
[49,"Forty Nine"]
[50,"Fifty"]
[51,"Fifty One"]
[52,"Fifty Two"]
[53,"Fifty Three"]
[54,"Fifty Four"]
[55,"Fifty Five"]
[56,"Fifty Six"]
[57,"Fifty Seven"]
[58,"Fifty Eight"]
[59,"Fifty Nine"]
[60,"Sixty"]
[61,"Sixty One"]
[62,"Sixty Two"]
[63,"Sixty Three"]
[64,"Sixty Four"]
[65,"Sixty Five"]
[66,"Sixty Six"]
[67,"Sixty Seven"]
[68,"Sixty Eight"]
[69,"Sixty Nine"]
[70,"Seventy "]
[71,"Seventy One"]
[72,"Seventy Two"]
[73,"Seventy Three"]
[74,"Seventy Four"]
[75,"Seventy Five"]
[76,"Seventy Six"]
[77,"Seventy Seven"]
[78,"Seventy Eight"]
[79,"Seventy Nine"]
[80,"Eighty "]
[81,"Eighty One"]
[82,"Eighty Two"]
[83,"Eighty Three"]
[84,"Eighty Four"]
[85,"Eighty Five"]
[86,"Eighty Six"]
[87,"Eighty Seven"]
[88,"Eighty Eight"]
[89,"Eighty Nine"]
[90,"Ninety "]
[91,"Ninety One"]
[92,"Ninety Two"]
[93,"Ninety Three"]
[94,"Ninety Four"]
[95,"Ninety Five"]
[96,"Ninety Six"]
[97,"Ninety Seven"]
[98,"Ninety Eight"]
[99,"Ninety Nine"]
[100,"One Hundred "]

{"sheet":"Sheet1","index":29,"n_rows":0,"n_cols":0,"rows_kept":0,"cut":false,"hidden":true,"merged":[]}